{"text_format":"1","workbook":"xlsx","n_sheets":7,"sheets":["Tabeller","Trend Midlertidig Stengt","Trend Kolonnekjøring","Søyle MS","Søyle KK","Søyle MS alle","Søyle KK alle"],"not_rendered":{"charts":6,"images":0,"macros":1,"external_links":0,"defined_names":7,"comments":0,"pivot_tables":0},"unopened":[],"bounds":{"document_bytes":16777216,"sheet_cells":100000,"rows_first":2000,"rows_last":500,"rows_between":2000,"halvings":0,"cell_chars":16384,"cell_head_chars":4096},"cells_cut":0,"cells_raw":0,"read":"whole","date_system":"1900"}

{"sheet":"Tabeller","index":0,"n_rows":79,"n_cols":50,"rows_kept":79,"cut":false,"hidden":false,"merged":[[3,1,3,8],[4,1,4,12],[6,36,9,37],[4,36,5,37],[7,13,7,14],[7,3,7,4],[7,5,7,6],[7,7,7,8],[7,9,7,10],[7,11,7,12],[5,1,5,28],[43,36,44,37],[7,29,7,30],[7,15,7,16],[7,27,7,28],[7,17,7,18],[7,19,7,20],[7,21,7,22],[7,23,7,24],[7,25,7,26]]}
[null,null,"Tabeller"]
[]
[]
[null,"Statistikk Fjelloverganger i Nord-Norge"]
[null,"Antall ganger midlertidig stengt og kolonnekjøringer i vintersesongen (1. okt-15. mai)",null,null,null,null,null,null,null,null,null,null,null,null,null,null,null,null,null,null,null,null,null,null,null,null,null,null,"Oppdatert 21.05.2021 av Roar F Hanssen, VTS",null,"Ant.Vintre",null,null,null,null,null,"Midlertidig stengt"]
[null,"Statistikken er tatt ut ved hjelp av Vegloggens statistikkmodul. Vegloggen er det loggføringsverktøyet som brukes på Vegtrafikksentralene.",null,null,null,null,null,null,null,null,null,null,null,null,null,null,null,null,null,null,null,null,null,null,null,null,null,null,null,null,12]
[null,null,null,null,null,null,null,null,null,null,null,null,null,null,null,null,null,null,null,null,null,null,null,null,null,null,null,null,null,null,null,null,null,null,null,null,2,null,3,5,7,9,11,13,15,17,19,21,23]
[null,null,"Vintersesong","2009/10",null,"2010/11",null,"2011/12",null,"2012/13",null,"2013/14",null,"2014/15",null,"2015/16",null,"2016/17",null,"2017/18",null,"2018/19",null,"2019/20",null,"2020/21",null,"SUM",null,"SNITT",null,null,null,null,null,null,null,null,"2009/2010","2010/2011","2011/2012","2012/2013","2013/2014","2014/2015","2015/2016","2016/2017","2017/2018","2018/2019","2019/2020","2020/2021"]
[null,"Nr","Fjellovergang/strekning","MS2009 / 2010","KK2009 / 2010","MS2010 / 2011","KK2010 / 2011","MS2011 / 2012","KK2011 / 2012","MS2012 / 2013","KK2012 / 2013","MS2013 / 2014","KK2013 / 2014","MS2014 / 2015","KK2014 / 2015","MS2015 / 2016","KK2015 / 2016","MS2016 / 2017","KK2016 / 2017","MS2017 / 2018","KK2017 / 2018","MS2018 / 2019","KK2018 / 2019","MS2019 / 2020","KK2019 / 2020","MS2020 / 2021","KK2020 / 2021","MSSUM","KKSUM","MSSNITT","KKSNITT",null,null,null,null,null,null,null,"MS2009 / 2010","MS2010 / 2011","MS2011 / 2012","MS2012 / 2013","MS2013 / 2014","MS2014 / 2015","MS2015 / 2016","MS2016 / 2017","MS2017 / 2018","MS2018 / 2019","MS2019 / 2020","MS2020 / 2021"]
[null,"Nr","Fjellovergang/strekning","MS","KK","MS","KK","MS","KK","MS","KK","MS","KK","MS","KK","MS","KK","MS","KK","MS","KK","MS","KK","MS","KK","MS","KK","MS","KK","MS","KK",null,null,null,null,null,null,null,"MS","MS","MS","MS","MS","MS","MS","MS","MS","MS","MS","MS"]
[null,1,"E6 Burfjord - Alta",9,0,11,0,21,0,22,0,23,0,53,0,33,0,7,0,13,0,9,0,21,0,30,1,{"$f":"SUM(T11,R11,P11,N11,L11,J11,H11,F11,D11,V11,X11)","v":222},{"$f":"SUM(U11,S11,Q11,O11,M11,K11,I11,G11,E11,W11,Y11)","v":0},{"$f":"AB11/AF11","v":20.181818181818183},{"$f":"AC11/AF11","v":0},{"$f":"COUNT(D11:Y11)/2","v":11},null,null,null,null,{"$f":"B11","v":1},{"$f":"VLOOKUP($AK11,Hovedtabell,AK$7,FALSE)","v":"E6 Burfjord - Alta"},{"$f":"_xlfn.XLOOKUP(AM$9,Tabell2[#Headers],Tabell2[#This Row],\"-\",0)","v":9},{"$f":"_xlfn.XLOOKUP(AN$9,Tabell2[#Headers],Tabell2[#This Row],\"-\",0)","v":11},{"$f":"_xlfn.XLOOKUP(AO$9,Tabell2[#Headers],Tabell2[#This Row],\"-\",0)","v":21},{"$f":"_xlfn.XLOOKUP(AP$9,Tabell2[#Headers],Tabell2[#This Row],\"-\",0)","v":22},{"$f":"_xlfn.XLOOKUP(AQ$9,Tabell2[#Headers],Tabell2[#This Row],\"-\",0)","v":23},{"$f":"_xlfn.XLOOKUP(AR$9,Tabell2[#Headers],Tabell2[#This Row],\"-\",0)","v":53},{"$f":"_xlfn.XLOOKUP(AS$9,Tabell2[#Headers],Tabell2[#This Row],\"-\",0)","v":33},{"$f":"_xlfn.XLOOKUP(AT$9,Tabell2[#Headers],Tabell2[#This Row],\"-\",0)","v":7},{"$f":"_xlfn.XLOOKUP(AU$9,Tabell2[#Headers],Tabell2[#This Row],\"-\",0)","v":13},{"$f":"_xlfn.XLOOKUP(AV$9,Tabell2[#Headers],Tabell2[#This Row],\"-\",0)","v":9},{"$f":"_xlfn.XLOOKUP(AW$9,Tabell2[#Headers],Tabell2[#This Row],\"-\",0)","v":21},{"$f":"_xlfn.XLOOKUP(AX$9,Tabell2[#Headers],Tabell2[#This Row],\"-\",0)","v":30}]
[null,2,"E6 Hatter",3,2,12,10,3,2,9,10,13,10,17,10,8,6,19,19,5,4,13,9,33,26,12,7,{"$f":"SUM(T12,R12,P12,N12,L12,J12,H12,F12,D12,V12,X12)","v":135},{"$f":"SUM(U12,S12,Q12,O12,M12,K12,I12,G12,E12,W12,Y12)","v":108},{"$f":"AB12/AF12","v":12.272727272727273},{"$f":"AC12/AF12","v":9.8181818181818183},{"$f":"COUNT(D12:Y12)/2","v":11},null,null,null,null,{"$f":"B12","v":2},"E6 Hatter",{"$f":"_xlfn.XLOOKUP(AM$9,Tabell2[#Headers],Tabell2[#This Row],\"-\",0)","v":3},{"$f":"_xlfn.XLOOKUP(AN$9,Tabell2[#Headers],Tabell2[#This Row],\"-\",0)","v":12},{"$f":"_xlfn.XLOOKUP(AO$9,Tabell2[#Headers],Tabell2[#This Row],\"-\",0)","v":3},{"$f":"_xlfn.XLOOKUP(AP$9,Tabell2[#Headers],Tabell2[#This Row],\"-\",0)","v":9},{"$f":"_xlfn.XLOOKUP(AQ$9,Tabell2[#Headers],Tabell2[#This Row],\"-\",0)","v":13},{"$f":"_xlfn.XLOOKUP(AR$9,Tabell2[#Headers],Tabell2[#This Row],\"-\",0)","v":17},{"$f":"_xlfn.XLOOKUP(AS$9,Tabell2[#Headers],Tabell2[#This Row],\"-\",0)","v":8},{"$f":"_xlfn.XLOOKUP(AT$9,Tabell2[#Headers],Tabell2[#This Row],\"-\",0)","v":19},{"$f":"_xlfn.XLOOKUP(AU$9,Tabell2[#Headers],Tabell2[#This Row],\"-\",0)","v":5},{"$f":"_xlfn.XLOOKUP(AV$9,Tabell2[#Headers],Tabell2[#This Row],\"-\",0)","v":13},{"$f":"_xlfn.XLOOKUP(AW$9,Tabell2[#Headers],Tabell2[#This Row],\"-\",0)","v":33},{"$f":"_xlfn.XLOOKUP(AX$9,Tabell2[#Headers],Tabell2[#This Row],\"-\",0)","v":12}]
[null,3,"E6 Kråkmofjellet",5,0,10,0,3,0,8,0,11,1,32,0,3,0,11,0,6,0,5,0,13,4,3,0,107,5,9.7272727272727266,0.45454545454545453,11,null,null,null,null,3,"E6 Kråkmofjellet",{"$f":"_xlfn.XLOOKUP(AM$9,Tabell2[#Headers],Tabell2[#This Row],\"-\",0)","v":5},{"$f":"_xlfn.XLOOKUP(AN$9,Tabell2[#Headers],Tabell2[#This Row],\"-\",0)","v":10},{"$f":"_xlfn.XLOOKUP(AO$9,Tabell2[#Headers],Tabell2[#This Row],\"-\",0)","v":3},{"$f":"_xlfn.XLOOKUP(AP$9,Tabell2[#Headers],Tabell2[#This Row],\"-\",0)","v":8},{"$f":"_xlfn.XLOOKUP(AQ$9,Tabell2[#Headers],Tabell2[#This Row],\"-\",0)","v":11},{"$f":"_xlfn.XLOOKUP(AR$9,Tabell2[#Headers],Tabell2[#This Row],\"-\",0)","v":32},{"$f":"_xlfn.XLOOKUP(AS$9,Tabell2[#Headers],Tabell2[#This Row],\"-\",0)","v":3},{"$f":"_xlfn.XLOOKUP(AT$9,Tabell2[#Headers],Tabell2[#This Row],\"-\",0)","v":11},{"$f":"_xlfn.XLOOKUP(AU$9,Tabell2[#Headers],Tabell2[#This Row],\"-\",0)","v":6},{"$f":"_xlfn.XLOOKUP(AV$9,Tabell2[#Headers],Tabell2[#This Row],\"-\",0)","v":5},{"$f":"_xlfn.XLOOKUP(AW$9,Tabell2[#Headers],Tabell2[#This Row],\"-\",0)","v":13},{"$f":"_xlfn.XLOOKUP(AX$9,Tabell2[#Headers],Tabell2[#This Row],\"-\",0)","v":3}]
[null,4,"E6 Kvænangsfjellet",16,4,30,8,8,1,35,18,44,16,21,11,23,10,30,19,33,24,36,19,97,59,32,24,373,189,33.909090909090907,17.181818181818183,11,null,null,null,null,4,"E6 Kvænangsfjellet",{"$f":"_xlfn.XLOOKUP(AM$9,Tabell2[#Headers],Tabell2[#This Row],\"-\",0)","v":16},{"$f":"_xlfn.XLOOKUP(AN$9,Tabell2[#Headers],Tabell2[#This Row],\"-\",0)","v":30},{"$f":"_xlfn.XLOOKUP(AO$9,Tabell2[#Headers],Tabell2[#This Row],\"-\",0)","v":8},{"$f":"_xlfn.XLOOKUP(AP$9,Tabell2[#Headers],Tabell2[#This Row],\"-\",0)","v":35},{"$f":"_xlfn.XLOOKUP(AQ$9,Tabell2[#Headers],Tabell2[#This Row],\"-\",0)","v":44},{"$f":"_xlfn.XLOOKUP(AR$9,Tabell2[#Headers],Tabell2[#This Row],\"-\",0)","v":21},{"$f":"_xlfn.XLOOKUP(AS$9,Tabell2[#Headers],Tabell2[#This Row],\"-\",0)","v":23},{"$f":"_xlfn.XLOOKUP(AT$9,Tabell2[#Headers],Tabell2[#This Row],\"-\",0)","v":30},{"$f":"_xlfn.XLOOKUP(AU$9,Tabell2[#Headers],Tabell2[#This Row],\"-\",0)","v":33},{"$f":"_xlfn.XLOOKUP(AV$9,Tabell2[#Headers],Tabell2[#This Row],\"-\",0)","v":36},{"$f":"_xlfn.XLOOKUP(AW$9,Tabell2[#Headers],Tabell2[#This Row],\"-\",0)","v":97},{"$f":"_xlfn.XLOOKUP(AX$9,Tabell2[#Headers],Tabell2[#This Row],\"-\",0)","v":32}]
[null,5,"E6 Saltfjellet",9,6,31,28,29,30,10,7,46,38,31,31,19,17,49,44,12,11,39,17,88,78,31,22,363,307,33,27.90909090909091,11,null,null,null,null,5,"E6 Saltfjellet",{"$f":"_xlfn.XLOOKUP(AM$9,Tabell2[#Headers],Tabell2[#This Row],\"-\",0)","v":9},{"$f":"_xlfn.XLOOKUP(AN$9,Tabell2[#Headers],Tabell2[#This Row],\"-\",0)","v":31},{"$f":"_xlfn.XLOOKUP(AO$9,Tabell2[#Headers],Tabell2[#This Row],\"-\",0)","v":29},{"$f":"_xlfn.XLOOKUP(AP$9,Tabell2[#Headers],Tabell2[#This Row],\"-\",0)","v":10},{"$f":"_xlfn.XLOOKUP(AQ$9,Tabell2[#Headers],Tabell2[#This Row],\"-\",0)","v":46},{"$f":"_xlfn.XLOOKUP(AR$9,Tabell2[#Headers],Tabell2[#This Row],\"-\",0)","v":31},{"$f":"_xlfn.XLOOKUP(AS$9,Tabell2[#Headers],Tabell2[#This Row],\"-\",0)","v":19},{"$f":"_xlfn.XLOOKUP(AT$9,Tabell2[#Headers],Tabell2[#This Row],\"-\",0)","v":49},{"$f":"_xlfn.XLOOKUP(AU$9,Tabell2[#Headers],Tabell2[#This Row],\"-\",0)","v":12},{"$f":"_xlfn.XLOOKUP(AV$9,Tabell2[#Headers],Tabell2[#This Row],\"-\",0)","v":39},{"$f":"_xlfn.XLOOKUP(AW$9,Tabell2[#Headers],Tabell2[#This Row],\"-\",0)","v":88},{"$f":"_xlfn.XLOOKUP(AX$9,Tabell2[#Headers],Tabell2[#This Row],\"-\",0)","v":31}]
[null,6,"E6 Sennalandet",11,4,41,34,15,19,38,31,39,37,33,20,17,13,55,57,28,26,21,8,62,104,24,17,360,353,{"$f":"AB16/AF16","v":32.727272727272727},32.090909090909093,11,null,null,null,null,6,"E6 Sennalandet",{"$f":"_xlfn.XLOOKUP(AM$9,Tabell2[#Headers],Tabell2[#This Row],\"-\",0)","v":11},{"$f":"_xlfn.XLOOKUP(AN$9,Tabell2[#Headers],Tabell2[#This Row],\"-\",0)","v":41},{"$f":"_xlfn.XLOOKUP(AO$9,Tabell2[#Headers],Tabell2[#This Row],\"-\",0)","v":15},{"$f":"_xlfn.XLOOKUP(AP$9,Tabell2[#Headers],Tabell2[#This Row],\"-\",0)","v":38},{"$f":"_xlfn.XLOOKUP(AQ$9,Tabell2[#Headers],Tabell2[#This Row],\"-\",0)","v":39},{"$f":"_xlfn.XLOOKUP(AR$9,Tabell2[#Headers],Tabell2[#This Row],\"-\",0)","v":33},{"$f":"_xlfn.XLOOKUP(AS$9,Tabell2[#Headers],Tabell2[#This Row],\"-\",0)","v":17},{"$f":"_xlfn.XLOOKUP(AT$9,Tabell2[#Headers],Tabell2[#This Row],\"-\",0)","v":55},{"$f":"_xlfn.XLOOKUP(AU$9,Tabell2[#Headers],Tabell2[#This Row],\"-\",0)","v":28},{"$f":"_xlfn.XLOOKUP(AV$9,Tabell2[#Headers],Tabell2[#This Row],\"-\",0)","v":21},{"$f":"_xlfn.XLOOKUP(AW$9,Tabell2[#Headers],Tabell2[#This Row],\"-\",0)","v":62},{"$f":"_xlfn.XLOOKUP(AX$9,Tabell2[#Headers],Tabell2[#This Row],\"-\",0)","v":24}]
[null,7,"E6 Ulvsvågskaret",6,0,28,4,17,0,27,0,15,0,20,0,13,0,7,0,6,0,13,0,7,0,1,0,159,4,14.454545454545455,0.36363636363636365,11,null,null,null,null,7,"E6 Ulvsvågskaret",{"$f":"_xlfn.XLOOKUP(AM$9,Tabell2[#Headers],Tabell2[#This Row],\"-\",0)","v":6},{"$f":"_xlfn.XLOOKUP(AN$9,Tabell2[#Headers],Tabell2[#This Row],\"-\",0)","v":28},{"$f":"_xlfn.XLOOKUP(AO$9,Tabell2[#Headers],Tabell2[#This Row],\"-\",0)","v":17},{"$f":"_xlfn.XLOOKUP(AP$9,Tabell2[#Headers],Tabell2[#This Row],\"-\",0)","v":27},{"$f":"_xlfn.XLOOKUP(AQ$9,Tabell2[#Headers],Tabell2[#This Row],\"-\",0)","v":15},{"$f":"_xlfn.XLOOKUP(AR$9,Tabell2[#Headers],Tabell2[#This Row],\"-\",0)","v":20},{"$f":"_xlfn.XLOOKUP(AS$9,Tabell2[#Headers],Tabell2[#This Row],\"-\",0)","v":13},{"$f":"_xlfn.XLOOKUP(AT$9,Tabell2[#Headers],Tabell2[#This Row],\"-\",0)","v":7},{"$f":"_xlfn.XLOOKUP(AU$9,Tabell2[#Headers],Tabell2[#This Row],\"-\",0)","v":6},{"$f":"_xlfn.XLOOKUP(AV$9,Tabell2[#Headers],Tabell2[#This Row],\"-\",0)","v":13},{"$f":"_xlfn.XLOOKUP(AW$9,Tabell2[#Headers],Tabell2[#This Row],\"-\",0)","v":7},{"$f":"_xlfn.XLOOKUP(AX$9,Tabell2[#Headers],Tabell2[#This Row],\"-\",0)","v":1}]
[null,8,"E10 Bjørnfjell",8,11,35,30,13,8,38,21,55,43,40,18,28,18,59,28,22,8,47,41,65,63,32,19,410,289,37.272727272727273,26.272727272727273,11,null,null,null,null,8,"E10 Bjørnfjell",{"$f":"_xlfn.XLOOKUP(AM$9,Tabell2[#Headers],Tabell2[#This Row],\"-\",0)","v":8},{"$f":"_xlfn.XLOOKUP(AN$9,Tabell2[#Headers],Tabell2[#This Row],\"-\",0)","v":35},{"$f":"_xlfn.XLOOKUP(AO$9,Tabell2[#Headers],Tabell2[#This Row],\"-\",0)","v":13},{"$f":"_xlfn.XLOOKUP(AP$9,Tabell2[#Headers],Tabell2[#This Row],\"-\",0)","v":38},{"$f":"_xlfn.XLOOKUP(AQ$9,Tabell2[#Headers],Tabell2[#This Row],\"-\",0)","v":55},{"$f":"_xlfn.XLOOKUP(AR$9,Tabell2[#Headers],Tabell2[#This Row],\"-\",0)","v":40},{"$f":"_xlfn.XLOOKUP(AS$9,Tabell2[#Headers],Tabell2[#This Row],\"-\",0)","v":28},{"$f":"_xlfn.XLOOKUP(AT$9,Tabell2[#Headers],Tabell2[#This Row],\"-\",0)","v":59},{"$f":"_xlfn.XLOOKUP(AU$9,Tabell2[#Headers],Tabell2[#This Row],\"-\",0)","v":22},{"$f":"_xlfn.XLOOKUP(AV$9,Tabell2[#Headers],Tabell2[#This Row],\"-\",0)","v":47},{"$f":"_xlfn.XLOOKUP(AW$9,Tabell2[#Headers],Tabell2[#This Row],\"-\",0)","v":65},{"$f":"_xlfn.XLOOKUP(AX$9,Tabell2[#Headers],Tabell2[#This Row],\"-\",0)","v":32}]
[null,9,"E12 Umbukta",3,1,11,2,13,16,22,3,41,19,14,8,8,2,10,4,6,3,5,4,25,16,12,1,158,78,14.363636363636363,7.0909090909090908,11,null,null,null,null,9,"E12 Umbukta",{"$f":"_xlfn.XLOOKUP(AM$9,Tabell2[#Headers],Tabell2[#This Row],\"-\",0)","v":3},{"$f":"_xlfn.XLOOKUP(AN$9,Tabell2[#Headers],Tabell2[#This Row],\"-\",0)","v":11},{"$f":"_xlfn.XLOOKUP(AO$9,Tabell2[#Headers],Tabell2[#This Row],\"-\",0)","v":13},{"$f":"_xlfn.XLOOKUP(AP$9,Tabell2[#Headers],Tabell2[#This Row],\"-\",0)","v":22},{"$f":"_xlfn.XLOOKUP(AQ$9,Tabell2[#Headers],Tabell2[#This Row],\"-\",0)","v":41},{"$f":"_xlfn.XLOOKUP(AR$9,Tabell2[#Headers],Tabell2[#This Row],\"-\",0)","v":14},{"$f":"_xlfn.XLOOKUP(AS$9,Tabell2[#Headers],Tabell2[#This Row],\"-\",0)","v":8},{"$f":"_xlfn.XLOOKUP(AT$9,Tabell2[#Headers],Tabell2[#This Row],\"-\",0)","v":10},{"$f":"_xlfn.XLOOKUP(AU$9,Tabell2[#Headers],Tabell2[#This Row],\"-\",0)","v":6},{"$f":"_xlfn.XLOOKUP(AV$9,Tabell2[#Headers],Tabell2[#This Row],\"-\",0)","v":5},{"$f":"_xlfn.XLOOKUP(AW$9,Tabell2[#Headers],Tabell2[#This Row],\"-\",0)","v":25},{"$f":"_xlfn.XLOOKUP(AX$9,Tabell2[#Headers],Tabell2[#This Row],\"-\",0)","v":12}]
[null,10,"E69 Hønsa - Repvåg",21,12,33,16,11,5,41,3,29,3,28,12,33,10,49,20,50,3,42,15,74,58,34,14,411,157,37.363636363636367,14.272727272727273,11,null,null,null,null,10,"E69 Hønsa - Repvåg",{"$f":"_xlfn.XLOOKUP(AM$9,Tabell2[#Headers],Tabell2[#This Row],\"-\",0)","v":21},{"$f":"_xlfn.XLOOKUP(AN$9,Tabell2[#Headers],Tabell2[#This Row],\"-\",0)","v":33},{"$f":"_xlfn.XLOOKUP(AO$9,Tabell2[#Headers],Tabell2[#This Row],\"-\",0)","v":11},{"$f":"_xlfn.XLOOKUP(AP$9,Tabell2[#Headers],Tabell2[#This Row],\"-\",0)","v":41},{"$f":"_xlfn.XLOOKUP(AQ$9,Tabell2[#Headers],Tabell2[#This Row],\"-\",0)","v":29},{"$f":"_xlfn.XLOOKUP(AR$9,Tabell2[#Headers],Tabell2[#This Row],\"-\",0)","v":28},{"$f":"_xlfn.XLOOKUP(AS$9,Tabell2[#Headers],Tabell2[#This Row],\"-\",0)","v":33},{"$f":"_xlfn.XLOOKUP(AT$9,Tabell2[#Headers],Tabell2[#This Row],\"-\",0)","v":49},{"$f":"_xlfn.XLOOKUP(AU$9,Tabell2[#Headers],Tabell2[#This Row],\"-\",0)","v":50},{"$f":"_xlfn.XLOOKUP(AV$9,Tabell2[#Headers],Tabell2[#This Row],\"-\",0)","v":42},{"$f":"_xlfn.XLOOKUP(AW$9,Tabell2[#Headers],Tabell2[#This Row],\"-\",0)","v":74},{"$f":"_xlfn.XLOOKUP(AX$9,Tabell2[#Headers],Tabell2[#This Row],\"-\",0)","v":34}]
[null,11,"E69 Nordkapptunnelen - Honningsvåg",7,0,15,1,7,1,29,1,19,0,23,3,19,1,12,0,31,3,17,1,28,6,27,3,207,17,{"$f":"AB21/AF21","v":18.818181818181817},{"$f":"AC21/AF21","v":1.5454545454545454},11,null,null,null,null,11,"E69 Nordkapptunnelen - Honningsvåg",{"$f":"_xlfn.XLOOKUP(AM$9,Tabell2[#Headers],Tabell2[#This Row],\"-\",0)","v":7},{"$f":"_xlfn.XLOOKUP(AN$9,Tabell2[#Headers],Tabell2[#This Row],\"-\",0)","v":15},{"$f":"_xlfn.XLOOKUP(AO$9,Tabell2[#Headers],Tabell2[#This Row],\"-\",0)","v":7},{"$f":"_xlfn.XLOOKUP(AP$9,Tabell2[#Headers],Tabell2[#This Row],\"-\",0)","v":29},{"$f":"_xlfn.XLOOKUP(AQ$9,Tabell2[#Headers],Tabell2[#This Row],\"-\",0)","v":19},{"$f":"_xlfn.XLOOKUP(AR$9,Tabell2[#Headers],Tabell2[#This Row],\"-\",0)","v":23},{"$f":"_xlfn.XLOOKUP(AS$9,Tabell2[#Headers],Tabell2[#This Row],\"-\",0)","v":19},{"$f":"_xlfn.XLOOKUP(AT$9,Tabell2[#Headers],Tabell2[#This Row],\"-\",0)","v":12},{"$f":"_xlfn.XLOOKUP(AU$9,Tabell2[#Headers],Tabell2[#This Row],\"-\",0)","v":31},{"$f":"_xlfn.XLOOKUP(AV$9,Tabell2[#Headers],Tabell2[#This Row],\"-\",0)","v":17},{"$f":"_xlfn.XLOOKUP(AW$9,Tabell2[#Headers],Tabell2[#This Row],\"-\",0)","v":28},{"$f":"_xlfn.XLOOKUP(AX$9,Tabell2[#Headers],Tabell2[#This Row],\"-\",0)","v":27}]
[null,12,"E69 Olderfjord - Honningsvåg",44,22,73,33,22,10,91,7,63,7,62,24,81,24,72,30,107,15,62,17,108,71,66,18,785,260,71.36363636363636,23.636363636363637,11,null,null,null,null,12,"E69 Olderfjord - Honningsvåg",{"$f":"_xlfn.XLOOKUP(AM$9,Tabell2[#Headers],Tabell2[#This Row],\"-\",0)","v":44},{"$f":"_xlfn.XLOOKUP(AN$9,Tabell2[#Headers],Tabell2[#This Row],\"-\",0)","v":73},{"$f":"_xlfn.XLOOKUP(AO$9,Tabell2[#Headers],Tabell2[#This Row],\"-\",0)","v":22},{"$f":"_xlfn.XLOOKUP(AP$9,Tabell2[#Headers],Tabell2[#This Row],\"-\",0)","v":91},{"$f":"_xlfn.XLOOKUP(AQ$9,Tabell2[#Headers],Tabell2[#This Row],\"-\",0)","v":63},{"$f":"_xlfn.XLOOKUP(AR$9,Tabell2[#Headers],Tabell2[#This Row],\"-\",0)","v":62},{"$f":"_xlfn.XLOOKUP(AS$9,Tabell2[#Headers],Tabell2[#This Row],\"-\",0)","v":81},{"$f":"_xlfn.XLOOKUP(AT$9,Tabell2[#Headers],Tabell2[#This Row],\"-\",0)","v":72},{"$f":"_xlfn.XLOOKUP(AU$9,Tabell2[#Headers],Tabell2[#This Row],\"-\",0)","v":107},{"$f":"_xlfn.XLOOKUP(AV$9,Tabell2[#Headers],Tabell2[#This Row],\"-\",0)","v":62},{"$f":"_xlfn.XLOOKUP(AW$9,Tabell2[#Headers],Tabell2[#This Row],\"-\",0)","v":108},{"$f":"_xlfn.XLOOKUP(AX$9,Tabell2[#Headers],Tabell2[#This Row],\"-\",0)","v":66}]
[null,13,"E69 Olderfjord - Hønsa",0,0,3,0,1,0,2,0,3,0,1,0,1,0,4,0,5,0,1,0,6,0,4,0,27,0,{"$f":"AB23/AF23","v":2.4545454545454546},{"$f":"AC23/AF23","v":0},11,null,null,null,null,13,"E69 Olderfjord - Hønsa",{"$f":"_xlfn.XLOOKUP(AM$9,Tabell2[#Headers],Tabell2[#This Row],\"-\",0)","v":0},{"$f":"_xlfn.XLOOKUP(AN$9,Tabell2[#Headers],Tabell2[#This Row],\"-\",0)","v":3},{"$f":"_xlfn.XLOOKUP(AO$9,Tabell2[#Headers],Tabell2[#This Row],\"-\",0)","v":1},{"$f":"_xlfn.XLOOKUP(AP$9,Tabell2[#Headers],Tabell2[#This Row],\"-\",0)","v":2},{"$f":"_xlfn.XLOOKUP(AQ$9,Tabell2[#Headers],Tabell2[#This Row],\"-\",0)","v":3},{"$f":"_xlfn.XLOOKUP(AR$9,Tabell2[#Headers],Tabell2[#This Row],\"-\",0)","v":1},{"$f":"_xlfn.XLOOKUP(AS$9,Tabell2[#Headers],Tabell2[#This Row],\"-\",0)","v":1},{"$f":"_xlfn.XLOOKUP(AT$9,Tabell2[#Headers],Tabell2[#This Row],\"-\",0)","v":4},{"$f":"_xlfn.XLOOKUP(AU$9,Tabell2[#Headers],Tabell2[#This Row],\"-\",0)","v":5},{"$f":"_xlfn.XLOOKUP(AV$9,Tabell2[#Headers],Tabell2[#This Row],\"-\",0)","v":1},{"$f":"_xlfn.XLOOKUP(AW$9,Tabell2[#Headers],Tabell2[#This Row],\"-\",0)","v":6},{"$f":"_xlfn.XLOOKUP(AX$9,Tabell2[#Headers],Tabell2[#This Row],\"-\",0)","v":4}]
[null,14,"E69 Repvåg - Nordkapptunnelen",18,10,32,16,13,6,35,5,27,5,26,14,36,13,48,26,51,15,35,17,61,69,23,18,382,196,34.727272727272727,17.818181818181817,11,null,null,null,null,14,"E69 Repvåg - Nordkapptunnelen",{"$f":"_xlfn.XLOOKUP(AM$9,Tabell2[#Headers],Tabell2[#This Row],\"-\",0)","v":18},{"$f":"_xlfn.XLOOKUP(AN$9,Tabell2[#Headers],Tabell2[#This Row],\"-\",0)","v":32},{"$f":"_xlfn.XLOOKUP(AO$9,Tabell2[#Headers],Tabell2[#This Row],\"-\",0)","v":13},{"$f":"_xlfn.XLOOKUP(AP$9,Tabell2[#Headers],Tabell2[#This Row],\"-\",0)","v":35},{"$f":"_xlfn.XLOOKUP(AQ$9,Tabell2[#Headers],Tabell2[#This Row],\"-\",0)","v":27},{"$f":"_xlfn.XLOOKUP(AR$9,Tabell2[#Headers],Tabell2[#This Row],\"-\",0)","v":26},{"$f":"_xlfn.XLOOKUP(AS$9,Tabell2[#Headers],Tabell2[#This Row],\"-\",0)","v":36},{"$f":"_xlfn.XLOOKUP(AT$9,Tabell2[#Headers],Tabell2[#This Row],\"-\",0)","v":48},{"$f":"_xlfn.XLOOKUP(AU$9,Tabell2[#Headers],Tabell2[#This Row],\"-\",0)","v":51},{"$f":"_xlfn.XLOOKUP(AV$9,Tabell2[#Headers],Tabell2[#This Row],\"-\",0)","v":35},{"$f":"_xlfn.XLOOKUP(AW$9,Tabell2[#Headers],Tabell2[#This Row],\"-\",0)","v":61},{"$f":"_xlfn.XLOOKUP(AX$9,Tabell2[#Headers],Tabell2[#This Row],\"-\",0)","v":23}]
[null,15,"E69 Skarsvåg - Nordkapp",9,5,18,7,23,19,21,22,13,24,16,20,8,11,39,36,26,40,25,31,51,38,39,37,249,253,22.636363636363637,23,11,null,null,null,null,15,"E69 Skarsvåg - Nordkapp",{"$f":"_xlfn.XLOOKUP(AM$9,Tabell2[#Headers],Tabell2[#This Row],\"-\",0)","v":9},{"$f":"_xlfn.XLOOKUP(AN$9,Tabell2[#Headers],Tabell2[#This Row],\"-\",0)","v":18},{"$f":"_xlfn.XLOOKUP(AO$9,Tabell2[#Headers],Tabell2[#This Row],\"-\",0)","v":23},{"$f":"_xlfn.XLOOKUP(AP$9,Tabell2[#Headers],Tabell2[#This Row],\"-\",0)","v":21},{"$f":"_xlfn.XLOOKUP(AQ$9,Tabell2[#Headers],Tabell2[#This Row],\"-\",0)","v":13},{"$f":"_xlfn.XLOOKUP(AR$9,Tabell2[#Headers],Tabell2[#This Row],\"-\",0)","v":16},{"$f":"_xlfn.XLOOKUP(AS$9,Tabell2[#Headers],Tabell2[#This Row],\"-\",0)","v":8},{"$f":"_xlfn.XLOOKUP(AT$9,Tabell2[#Headers],Tabell2[#This Row],\"-\",0)","v":39},{"$f":"_xlfn.XLOOKUP(AU$9,Tabell2[#Headers],Tabell2[#This Row],\"-\",0)","v":26},{"$f":"_xlfn.XLOOKUP(AV$9,Tabell2[#Headers],Tabell2[#This Row],\"-\",0)","v":25},{"$f":"_xlfn.XLOOKUP(AW$9,Tabell2[#Headers],Tabell2[#This Row],\"-\",0)","v":51},{"$f":"_xlfn.XLOOKUP(AX$9,Tabell2[#Headers],Tabell2[#This Row],\"-\",0)","v":39}]
[null,16,"E69 Skipsfjordhøgda - Skarsvåg",6,19,22,52,7,12,27,31,32,23,22,27,16,7,30,12,34,10,25,20,64,61,17,25,285,274,25.90909090909091,24.90909090909091,11,null,null,null,null,16,"E69 Skipsfjordhøgda - Skarsvåg",{"$f":"_xlfn.XLOOKUP(AM$9,Tabell2[#Headers],Tabell2[#This Row],\"-\",0)","v":6},{"$f":"_xlfn.XLOOKUP(AN$9,Tabell2[#Headers],Tabell2[#This Row],\"-\",0)","v":22},{"$f":"_xlfn.XLOOKUP(AO$9,Tabell2[#Headers],Tabell2[#This Row],\"-\",0)","v":7},{"$f":"_xlfn.XLOOKUP(AP$9,Tabell2[#Headers],Tabell2[#This Row],\"-\",0)","v":27},{"$f":"_xlfn.XLOOKUP(AQ$9,Tabell2[#Headers],Tabell2[#This Row],\"-\",0)","v":32},{"$f":"_xlfn.XLOOKUP(AR$9,Tabell2[#Headers],Tabell2[#This Row],\"-\",0)","v":22},{"$f":"_xlfn.XLOOKUP(AS$9,Tabell2[#Headers],Tabell2[#This Row],\"-\",0)","v":16},{"$f":"_xlfn.XLOOKUP(AT$9,Tabell2[#Headers],Tabell2[#This Row],\"-\",0)","v":30},{"$f":"_xlfn.XLOOKUP(AU$9,Tabell2[#Headers],Tabell2[#This Row],\"-\",0)","v":34},{"$f":"_xlfn.XLOOKUP(AV$9,Tabell2[#Headers],Tabell2[#This Row],\"-\",0)","v":25},{"$f":"_xlfn.XLOOKUP(AW$9,Tabell2[#Headers],Tabell2[#This Row],\"-\",0)","v":64},{"$f":"_xlfn.XLOOKUP(AX$9,Tabell2[#Headers],Tabell2[#This Row],\"-\",0)","v":17}]
[null,17,"Rv 73 Krutfjellet",1,0,4,0,4,2,1,0,4,0,4,1,5,0,2,4,4,1,3,2,9,1,3,0,41,11,3.7272727272727271,1,11,null,null,null,null,17,"Rv 73 Krutfjellet",{"$f":"_xlfn.XLOOKUP(AM$9,Tabell2[#Headers],Tabell2[#This Row],\"-\",0)","v":1},{"$f":"_xlfn.XLOOKUP(AN$9,Tabell2[#Headers],Tabell2[#This Row],\"-\",0)","v":4},{"$f":"_xlfn.XLOOKUP(AO$9,Tabell2[#Headers],Tabell2[#This Row],\"-\",0)","v":4},{"$f":"_xlfn.XLOOKUP(AP$9,Tabell2[#Headers],Tabell2[#This Row],\"-\",0)","v":1},{"$f":"_xlfn.XLOOKUP(AQ$9,Tabell2[#Headers],Tabell2[#This Row],\"-\",0)","v":4},{"$f":"_xlfn.XLOOKUP(AR$9,Tabell2[#Headers],Tabell2[#This Row],\"-\",0)","v":4},{"$f":"_xlfn.XLOOKUP(AS$9,Tabell2[#Headers],Tabell2[#This Row],\"-\",0)","v":5},{"$f":"_xlfn.XLOOKUP(AT$9,Tabell2[#Headers],Tabell2[#This Row],\"-\",0)","v":2},{"$f":"_xlfn.XLOOKUP(AU$9,Tabell2[#Headers],Tabell2[#This Row],\"-\",0)","v":4},{"$f":"_xlfn.XLOOKUP(AV$9,Tabell2[#Headers],Tabell2[#This Row],\"-\",0)","v":3},{"$f":"_xlfn.XLOOKUP(AW$9,Tabell2[#Headers],Tabell2[#This Row],\"-\",0)","v":9},{"$f":"_xlfn.XLOOKUP(AX$9,Tabell2[#Headers],Tabell2[#This Row],\"-\",0)","v":3}]
[null,18,"Rv 77 Graddis",6,0,6,0,6,0,8,0,8,0,2,1,10,0,15,0,8,0,5,0,9,1,2,0,83,2,7.5454545454545459,0.18181818181818182,11,null,null,null,null,18,"Rv 77 Graddis",{"$f":"_xlfn.XLOOKUP(AM$9,Tabell2[#Headers],Tabell2[#This Row],\"-\",0)","v":6},{"$f":"_xlfn.XLOOKUP(AN$9,Tabell2[#Headers],Tabell2[#This Row],\"-\",0)","v":6},{"$f":"_xlfn.XLOOKUP(AO$9,Tabell2[#Headers],Tabell2[#This Row],\"-\",0)","v":6},{"$f":"_xlfn.XLOOKUP(AP$9,Tabell2[#Headers],Tabell2[#This Row],\"-\",0)","v":8},{"$f":"_xlfn.XLOOKUP(AQ$9,Tabell2[#Headers],Tabell2[#This Row],\"-\",0)","v":8},{"$f":"_xlfn.XLOOKUP(AR$9,Tabell2[#Headers],Tabell2[#This Row],\"-\",0)","v":2},{"$f":"_xlfn.XLOOKUP(AS$9,Tabell2[#Headers],Tabell2[#This Row],\"-\",0)","v":10},{"$f":"_xlfn.XLOOKUP(AT$9,Tabell2[#Headers],Tabell2[#This Row],\"-\",0)","v":15},{"$f":"_xlfn.XLOOKUP(AU$9,Tabell2[#Headers],Tabell2[#This Row],\"-\",0)","v":8},{"$f":"_xlfn.XLOOKUP(AV$9,Tabell2[#Headers],Tabell2[#This Row],\"-\",0)","v":5},{"$f":"_xlfn.XLOOKUP(AW$9,Tabell2[#Headers],Tabell2[#This Row],\"-\",0)","v":9},{"$f":"_xlfn.XLOOKUP(AX$9,Tabell2[#Headers],Tabell2[#This Row],\"-\",0)","v":2}]
[null,19,"Rv 92 Kautokeino - Karasjok",0,0,0,0,2,0,5,0,6,0,2,0,4,1,8,0,1,0,10,0,3,0,5,0,41,1,3.7272727272727271,9.0909090909090912E-2,11,null,null,null,null,19,"Rv 92 Kautokeino - Karasjok",{"$f":"_xlfn.XLOOKUP(AM$9,Tabell2[#Headers],Tabell2[#This Row],\"-\",0)","v":0},{"$f":"_xlfn.XLOOKUP(AN$9,Tabell2[#Headers],Tabell2[#This Row],\"-\",0)","v":0},{"$f":"_xlfn.XLOOKUP(AO$9,Tabell2[#Headers],Tabell2[#This Row],\"-\",0)","v":2},{"$f":"_xlfn.XLOOKUP(AP$9,Tabell2[#Headers],Tabell2[#This Row],\"-\",0)","v":5},{"$f":"_xlfn.XLOOKUP(AQ$9,Tabell2[#Headers],Tabell2[#This Row],\"-\",0)","v":6},{"$f":"_xlfn.XLOOKUP(AR$9,Tabell2[#Headers],Tabell2[#This Row],\"-\",0)","v":2},{"$f":"_xlfn.XLOOKUP(AS$9,Tabell2[#Headers],Tabell2[#This Row],\"-\",0)","v":4},{"$f":"_xlfn.XLOOKUP(AT$9,Tabell2[#Headers],Tabell2[#This Row],\"-\",0)","v":8},{"$f":"_xlfn.XLOOKUP(AU$9,Tabell2[#Headers],Tabell2[#This Row],\"-\",0)","v":1},{"$f":"_xlfn.XLOOKUP(AV$9,Tabell2[#Headers],Tabell2[#This Row],\"-\",0)","v":10},{"$f":"_xlfn.XLOOKUP(AW$9,Tabell2[#Headers],Tabell2[#This Row],\"-\",0)","v":3},{"$f":"_xlfn.XLOOKUP(AX$9,Tabell2[#Headers],Tabell2[#This Row],\"-\",0)","v":5}]
[null,20,"E45 Kautokeino - Alta",4,0,17,0,2,0,7,0,13,0,4,0,7,1,16,2,3,0,16,0,12,0,20,0,101,3,9.1818181818181817,0.27272727272727271,11,null,null,null,null,20,"E45 Kautokeino - Alta",{"$f":"_xlfn.XLOOKUP(AM$9,Tabell2[#Headers],Tabell2[#This Row],\"-\",0)","v":4},{"$f":"_xlfn.XLOOKUP(AN$9,Tabell2[#Headers],Tabell2[#This Row],\"-\",0)","v":17},{"$f":"_xlfn.XLOOKUP(AO$9,Tabell2[#Headers],Tabell2[#This Row],\"-\",0)","v":2},{"$f":"_xlfn.XLOOKUP(AP$9,Tabell2[#Headers],Tabell2[#This Row],\"-\",0)","v":7},{"$f":"_xlfn.XLOOKUP(AQ$9,Tabell2[#Headers],Tabell2[#This Row],\"-\",0)","v":13},{"$f":"_xlfn.XLOOKUP(AR$9,Tabell2[#Headers],Tabell2[#This Row],\"-\",0)","v":4},{"$f":"_xlfn.XLOOKUP(AS$9,Tabell2[#Headers],Tabell2[#This Row],\"-\",0)","v":7},{"$f":"_xlfn.XLOOKUP(AT$9,Tabell2[#Headers],Tabell2[#This Row],\"-\",0)","v":16},{"$f":"_xlfn.XLOOKUP(AU$9,Tabell2[#Headers],Tabell2[#This Row],\"-\",0)","v":3},{"$f":"_xlfn.XLOOKUP(AV$9,Tabell2[#Headers],Tabell2[#This Row],\"-\",0)","v":16},{"$f":"_xlfn.XLOOKUP(AW$9,Tabell2[#Headers],Tabell2[#This Row],\"-\",0)","v":12},{"$f":"_xlfn.XLOOKUP(AX$9,Tabell2[#Headers],Tabell2[#This Row],\"-\",0)","v":20}]
[null,21,"Rv 94 Kvalsund - Hammerfest",8,3,25,13,7,4,18,6,14,6,23,3,29,6,23,4,10,1,24,3,36,17,20,2,217,66,19.727272727272727,6,11,null,null,null,null,21,"Rv 94 Kvalsund - Hammerfest",{"$f":"_xlfn.XLOOKUP(AM$9,Tabell2[#Headers],Tabell2[#This Row],\"-\",0)","v":8},{"$f":"_xlfn.XLOOKUP(AN$9,Tabell2[#Headers],Tabell2[#This Row],\"-\",0)","v":25},{"$f":"_xlfn.XLOOKUP(AO$9,Tabell2[#Headers],Tabell2[#This Row],\"-\",0)","v":7},{"$f":"_xlfn.XLOOKUP(AP$9,Tabell2[#Headers],Tabell2[#This Row],\"-\",0)","v":18},{"$f":"_xlfn.XLOOKUP(AQ$9,Tabell2[#Headers],Tabell2[#This Row],\"-\",0)","v":14},{"$f":"_xlfn.XLOOKUP(AR$9,Tabell2[#Headers],Tabell2[#This Row],\"-\",0)","v":23},{"$f":"_xlfn.XLOOKUP(AS$9,Tabell2[#Headers],Tabell2[#This Row],\"-\",0)","v":29},{"$f":"_xlfn.XLOOKUP(AT$9,Tabell2[#Headers],Tabell2[#This Row],\"-\",0)","v":23},{"$f":"_xlfn.XLOOKUP(AU$9,Tabell2[#Headers],Tabell2[#This Row],\"-\",0)","v":10},{"$f":"_xlfn.XLOOKUP(AV$9,Tabell2[#Headers],Tabell2[#This Row],\"-\",0)","v":24},{"$f":"_xlfn.XLOOKUP(AW$9,Tabell2[#Headers],Tabell2[#This Row],\"-\",0)","v":36},{"$f":"_xlfn.XLOOKUP(AX$9,Tabell2[#Headers],Tabell2[#This Row],\"-\",0)","v":20}]
[null,22,"Fv 8038 Gjesværkrysset - Gjesvær",9,16,20,52,8,11,26,31,30,22,18,29,16,7,32,14,28,10,18,18,65,55,21,22,270,265,24.545454545454547,24.09090909090909,11,null,null,null,null,22,"Fv 8038 Gjesværkrysset - Gjesvær",{"$f":"_xlfn.XLOOKUP(AM$9,Tabell2[#Headers],Tabell2[#This Row],\"-\",0)","v":9},{"$f":"_xlfn.XLOOKUP(AN$9,Tabell2[#Headers],Tabell2[#This Row],\"-\",0)","v":20},{"$f":"_xlfn.XLOOKUP(AO$9,Tabell2[#Headers],Tabell2[#This Row],\"-\",0)","v":8},{"$f":"_xlfn.XLOOKUP(AP$9,Tabell2[#Headers],Tabell2[#This Row],\"-\",0)","v":26},{"$f":"_xlfn.XLOOKUP(AQ$9,Tabell2[#Headers],Tabell2[#This Row],\"-\",0)","v":30},{"$f":"_xlfn.XLOOKUP(AR$9,Tabell2[#Headers],Tabell2[#This Row],\"-\",0)","v":18},{"$f":"_xlfn.XLOOKUP(AS$9,Tabell2[#Headers],Tabell2[#This Row],\"-\",0)","v":16},{"$f":"_xlfn.XLOOKUP(AT$9,Tabell2[#Headers],Tabell2[#This Row],\"-\",0)","v":32},{"$f":"_xlfn.XLOOKUP(AU$9,Tabell2[#Headers],Tabell2[#This Row],\"-\",0)","v":28},{"$f":"_xlfn.XLOOKUP(AV$9,Tabell2[#Headers],Tabell2[#This Row],\"-\",0)","v":18},{"$f":"_xlfn.XLOOKUP(AW$9,Tabell2[#Headers],Tabell2[#This Row],\"-\",0)","v":65},{"$f":"_xlfn.XLOOKUP(AX$9,Tabell2[#Headers],Tabell2[#This Row],\"-\",0)","v":21}]
[null,23,"Fv 889 Smørfjord - Havøysund"," - "," - ",34,54,12,6,37,38,31,39,34,26,36,44,53,40,37,33,41,41,79,69,36,16,394,390,39.4,39,10,null,null,null,null,23,"Fv 889 Smørfjord - Havøysund",{"$f":"_xlfn.XLOOKUP(AM$9,Tabell2[#Headers],Tabell2[#This Row],\"-\",0)","v":" - "},{"$f":"_xlfn.XLOOKUP(AN$9,Tabell2[#Headers],Tabell2[#This Row],\"-\",0)","v":34},{"$f":"_xlfn.XLOOKUP(AO$9,Tabell2[#Headers],Tabell2[#This Row],\"-\",0)","v":12},{"$f":"_xlfn.XLOOKUP(AP$9,Tabell2[#Headers],Tabell2[#This Row],\"-\",0)","v":37},{"$f":"_xlfn.XLOOKUP(AQ$9,Tabell2[#Headers],Tabell2[#This Row],\"-\",0)","v":31},{"$f":"_xlfn.XLOOKUP(AR$9,Tabell2[#Headers],Tabell2[#This Row],\"-\",0)","v":34},{"$f":"_xlfn.XLOOKUP(AS$9,Tabell2[#Headers],Tabell2[#This Row],\"-\",0)","v":36},{"$f":"_xlfn.XLOOKUP(AT$9,Tabell2[#Headers],Tabell2[#This Row],\"-\",0)","v":53},{"$f":"_xlfn.XLOOKUP(AU$9,Tabell2[#Headers],Tabell2[#This Row],\"-\",0)","v":37},{"$f":"_xlfn.XLOOKUP(AV$9,Tabell2[#Headers],Tabell2[#This Row],\"-\",0)","v":41},{"$f":"_xlfn.XLOOKUP(AW$9,Tabell2[#Headers],Tabell2[#This Row],\"-\",0)","v":79},{"$f":"_xlfn.XLOOKUP(AX$9,Tabell2[#Headers],Tabell2[#This Row],\"-\",0)","v":36}]
[null,24,"Fv 891 Båtsfjordfjellet"," - "," - ",27,75,6,44,17,75,38,61,41,69,33,30,65,50,34,41,19,31,46,86,24,36,326,562,{"$f":"AB34/AF34","v":32.6},{"$f":"AC34/AF34","v":56.2},10,null,null,null,null,{"$f":"B34","v":24},{"$f":"VLOOKUP($AK34,Hovedtabell,AK$7,FALSE)","v":"Fv 891 Båtsfjordfjellet"},{"$f":"_xlfn.XLOOKUP(AM$9,Tabell2[#Headers],Tabell2[#This Row],\"-\",0)","v":" - "},{"$f":"_xlfn.XLOOKUP(AN$9,Tabell2[#Headers],Tabell2[#This Row],\"-\",0)","v":27},{"$f":"_xlfn.XLOOKUP(AO$9,Tabell2[#Headers],Tabell2[#This Row],\"-\",0)","v":6},{"$f":"_xlfn.XLOOKUP(AP$9,Tabell2[#Headers],Tabell2[#This Row],\"-\",0)","v":17},{"$f":"_xlfn.XLOOKUP(AQ$9,Tabell2[#Headers],Tabell2[#This Row],\"-\",0)","v":38},{"$f":"_xlfn.XLOOKUP(AR$9,Tabell2[#Headers],Tabell2[#This Row],\"-\",0)","v":41},{"$f":"_xlfn.XLOOKUP(AS$9,Tabell2[#Headers],Tabell2[#This Row],\"-\",0)","v":33},{"$f":"_xlfn.XLOOKUP(AT$9,Tabell2[#Headers],Tabell2[#This Row],\"-\",0)","v":65},{"$f":"_xlfn.XLOOKUP(AU$9,Tabell2[#Headers],Tabell2[#This Row],\"-\",0)","v":34},{"$f":"_xlfn.XLOOKUP(AV$9,Tabell2[#Headers],Tabell2[#This Row],\"-\",0)","v":19},{"$f":"_xlfn.XLOOKUP(AW$9,Tabell2[#Headers],Tabell2[#This Row],\"-\",0)","v":46},{"$f":"_xlfn.XLOOKUP(AX$9,Tabell2[#Headers],Tabell2[#This Row],\"-\",0)","v":24}]
[null,25,"E75 Domen (Kiberg-Vardø)",8,1,12,13,0,0,8,6,7,6,7,0,2,0,11,4,14,8,8,2,40,35,24,5,117,75,10.636363636363637,6.8181818181818183,11,null,null,null,null,25,"E75 Domen (Kiberg-Vardø)",{"$f":"_xlfn.XLOOKUP(AM$9,Tabell2[#Headers],Tabell2[#This Row],\"-\",0)","v":8},{"$f":"_xlfn.XLOOKUP(AN$9,Tabell2[#Headers],Tabell2[#This Row],\"-\",0)","v":12},{"$f":"_xlfn.XLOOKUP(AO$9,Tabell2[#Headers],Tabell2[#This Row],\"-\",0)","v":0},{"$f":"_xlfn.XLOOKUP(AP$9,Tabell2[#Headers],Tabell2[#This Row],\"-\",0)","v":8},{"$f":"_xlfn.XLOOKUP(AQ$9,Tabell2[#Headers],Tabell2[#This Row],\"-\",0)","v":7},{"$f":"_xlfn.XLOOKUP(AR$9,Tabell2[#Headers],Tabell2[#This Row],\"-\",0)","v":7},{"$f":"_xlfn.XLOOKUP(AS$9,Tabell2[#Headers],Tabell2[#This Row],\"-\",0)","v":2},{"$f":"_xlfn.XLOOKUP(AT$9,Tabell2[#Headers],Tabell2[#This Row],\"-\",0)","v":11},{"$f":"_xlfn.XLOOKUP(AU$9,Tabell2[#Headers],Tabell2[#This Row],\"-\",0)","v":14},{"$f":"_xlfn.XLOOKUP(AV$9,Tabell2[#Headers],Tabell2[#This Row],\"-\",0)","v":8},{"$f":"_xlfn.XLOOKUP(AW$9,Tabell2[#Headers],Tabell2[#This Row],\"-\",0)","v":40},{"$f":"_xlfn.XLOOKUP(AX$9,Tabell2[#Headers],Tabell2[#This Row],\"-\",0)","v":24}]
[null,26,"Fv 888 Nordkynvegen (Ifjord - Mehamn)"," - "," - ",66,137,35,48,44,65,47,62,31,43,69,66,89,117,54,71,64,74,137,177,53,74,636,860,63.6,86,10,null,null,null,null,26,"Fv 888 Nordkynvegen (Ifjord - Mehamn)",{"$f":"_xlfn.XLOOKUP(AM$9,Tabell2[#Headers],Tabell2[#This Row],\"-\",0)","v":" - "},{"$f":"_xlfn.XLOOKUP(AN$9,Tabell2[#Headers],Tabell2[#This Row],\"-\",0)","v":66},{"$f":"_xlfn.XLOOKUP(AO$9,Tabell2[#Headers],Tabell2[#This Row],\"-\",0)","v":35},{"$f":"_xlfn.XLOOKUP(AP$9,Tabell2[#Headers],Tabell2[#This Row],\"-\",0)","v":44},{"$f":"_xlfn.XLOOKUP(AQ$9,Tabell2[#Headers],Tabell2[#This Row],\"-\",0)","v":47},{"$f":"_xlfn.XLOOKUP(AR$9,Tabell2[#Headers],Tabell2[#This Row],\"-\",0)","v":31},{"$f":"_xlfn.XLOOKUP(AS$9,Tabell2[#Headers],Tabell2[#This Row],\"-\",0)","v":69},{"$f":"_xlfn.XLOOKUP(AT$9,Tabell2[#Headers],Tabell2[#This Row],\"-\",0)","v":89},{"$f":"_xlfn.XLOOKUP(AU$9,Tabell2[#Headers],Tabell2[#This Row],\"-\",0)","v":54},{"$f":"_xlfn.XLOOKUP(AV$9,Tabell2[#Headers],Tabell2[#This Row],\"-\",0)","v":64},{"$f":"_xlfn.XLOOKUP(AW$9,Tabell2[#Headers],Tabell2[#This Row],\"-\",0)","v":137},{"$f":"_xlfn.XLOOKUP(AX$9,Tabell2[#Headers],Tabell2[#This Row],\"-\",0)","v":53}]
[null,27,"Fv 98 Ifjordfjellet"," - "," - ",44,110,29,54,19,57,21,49,12,25,21,37,23,56,25,39,17,39,36,84,13,36,247,550,{"$f":"AB37/AF37","v":24.7},{"$f":"AC37/AF37","v":55},10,null,null,null,null,27,"Fv 98 Ifjordfjellet",{"$f":"_xlfn.XLOOKUP(AM$9,Tabell2[#Headers],Tabell2[#This Row],\"-\",0)","v":" - "},{"$f":"_xlfn.XLOOKUP(AN$9,Tabell2[#Headers],Tabell2[#This Row],\"-\",0)","v":44},{"$f":"_xlfn.XLOOKUP(AO$9,Tabell2[#Headers],Tabell2[#This Row],\"-\",0)","v":29},{"$f":"_xlfn.XLOOKUP(AP$9,Tabell2[#Headers],Tabell2[#This Row],\"-\",0)","v":19},{"$f":"_xlfn.XLOOKUP(AQ$9,Tabell2[#Headers],Tabell2[#This Row],\"-\",0)","v":21},{"$f":"_xlfn.XLOOKUP(AR$9,Tabell2[#Headers],Tabell2[#This Row],\"-\",0)","v":12},{"$f":"_xlfn.XLOOKUP(AS$9,Tabell2[#Headers],Tabell2[#This Row],\"-\",0)","v":21},{"$f":"_xlfn.XLOOKUP(AT$9,Tabell2[#Headers],Tabell2[#This Row],\"-\",0)","v":23},{"$f":"_xlfn.XLOOKUP(AU$9,Tabell2[#Headers],Tabell2[#This Row],\"-\",0)","v":25},{"$f":"_xlfn.XLOOKUP(AV$9,Tabell2[#Headers],Tabell2[#This Row],\"-\",0)","v":17},{"$f":"_xlfn.XLOOKUP(AW$9,Tabell2[#Headers],Tabell2[#This Row],\"-\",0)","v":36},{"$f":"_xlfn.XLOOKUP(AX$9,Tabell2[#Headers],Tabell2[#This Row],\"-\",0)","v":13}]
[null,28,"Fv 890 Kongsfjordfjellet"," - "," - ",25,75,6,44,18,73,40,57,37,53,25,18,56,29,27,27,17,23,48,78,22,29,299,477,29.9,47.7,10,null,null,null,null,{"$f":"B38","v":28},{"$f":"VLOOKUP($AK38,Hovedtabell,AK$7,FALSE)","v":"Fv 890 Kongsfjordfjellet"},{"$f":"_xlfn.XLOOKUP(AM$9,Tabell2[#Headers],Tabell2[#This Row],\"-\",0)","v":" - "},{"$f":"_xlfn.XLOOKUP(AN$9,Tabell2[#Headers],Tabell2[#This Row],\"-\",0)","v":25},{"$f":"_xlfn.XLOOKUP(AO$9,Tabell2[#Headers],Tabell2[#This Row],\"-\",0)","v":6},{"$f":"_xlfn.XLOOKUP(AP$9,Tabell2[#Headers],Tabell2[#This Row],\"-\",0)","v":18},{"$f":"_xlfn.XLOOKUP(AQ$9,Tabell2[#Headers],Tabell2[#This Row],\"-\",0)","v":40},{"$f":"_xlfn.XLOOKUP(AR$9,Tabell2[#Headers],Tabell2[#This Row],\"-\",0)","v":37},{"$f":"_xlfn.XLOOKUP(AS$9,Tabell2[#Headers],Tabell2[#This Row],\"-\",0)","v":25},{"$f":"_xlfn.XLOOKUP(AT$9,Tabell2[#Headers],Tabell2[#This Row],\"-\",0)","v":56},{"$f":"_xlfn.XLOOKUP(AU$9,Tabell2[#Headers],Tabell2[#This Row],\"-\",0)","v":27},{"$f":"_xlfn.XLOOKUP(AV$9,Tabell2[#Headers],Tabell2[#This Row],\"-\",0)","v":17},{"$f":"_xlfn.XLOOKUP(AW$9,Tabell2[#Headers],Tabell2[#This Row],\"-\",0)","v":48},{"$f":"_xlfn.XLOOKUP(AX$9,Tabell2[#Headers],Tabell2[#This Row],\"-\",0)","v":22}]
[null,29,"Fv 98 Børselvfjellet (Børselv - Kunes)"," - "," - ",4,1,1,0,5,3,5,0,4,1,7,0,15,11,9,0,8,0,31,15,10,11,89,31,{"$f":"AB39/AF39","v":8.9},{"$f":"AC39/AF39","v":3.1},10,null,null,null,null,29,"Fv 98 Børselvfjellet (Børselv - Kunes)",{"$f":"_xlfn.XLOOKUP(AM$9,Tabell2[#Headers],Tabell2[#This Row],\"-\",0)","v":" - "},{"$f":"_xlfn.XLOOKUP(AN$9,Tabell2[#Headers],Tabell2[#This Row],\"-\",0)","v":4},{"$f":"_xlfn.XLOOKUP(AO$9,Tabell2[#Headers],Tabell2[#This Row],\"-\",0)","v":1},{"$f":"_xlfn.XLOOKUP(AP$9,Tabell2[#Headers],Tabell2[#This Row],\"-\",0)","v":5},{"$f":"_xlfn.XLOOKUP(AQ$9,Tabell2[#Headers],Tabell2[#This Row],\"-\",0)","v":5},{"$f":"_xlfn.XLOOKUP(AR$9,Tabell2[#Headers],Tabell2[#This Row],\"-\",0)","v":4},{"$f":"_xlfn.XLOOKUP(AS$9,Tabell2[#Headers],Tabell2[#This Row],\"-\",0)","v":7},{"$f":"_xlfn.XLOOKUP(AT$9,Tabell2[#Headers],Tabell2[#This Row],\"-\",0)","v":15},{"$f":"_xlfn.XLOOKUP(AU$9,Tabell2[#Headers],Tabell2[#This Row],\"-\",0)","v":9},{"$f":"_xlfn.XLOOKUP(AV$9,Tabell2[#Headers],Tabell2[#This Row],\"-\",0)","v":8},{"$f":"_xlfn.XLOOKUP(AW$9,Tabell2[#Headers],Tabell2[#This Row],\"-\",0)","v":31},{"$f":"_xlfn.XLOOKUP(AX$9,Tabell2[#Headers],Tabell2[#This Row],\"-\",0)","v":10}]
[null,30,"Fv 813 Beiarfjellet (Misvær - Storjord)"," - "," - ",9,17,5,8,6,2,9,13,8,16,2,6,12,19,7,6,5,10,24,43,3,2,{"$f":"SUM(T40,R40,P40,N40,L40,J40,H40,F40,D40,V40,X40)","v":87},{"$f":"SUM(U40,S40,Q40,O40,M40,K40,I40,G40,E40,W40,Y40)","v":140},{"$f":"AB40/AF40","v":8.6999999999999993},{"$f":"AC40/AF40","v":14},10,null,null,null,null,{"$f":"B40","v":30},{"$f":"VLOOKUP($AK40,Hovedtabell,AK$7,FALSE)","v":"Fv 813 Beiarfjellet (Misvær - Storjord)"},{"$f":"_xlfn.XLOOKUP(AM$9,Tabell2[#Headers],Tabell2[#This Row],\"-\",0)","v":" - "},{"$f":"_xlfn.XLOOKUP(AN$9,Tabell2[#Headers],Tabell2[#This Row],\"-\",0)","v":9},{"$f":"_xlfn.XLOOKUP(AO$9,Tabell2[#Headers],Tabell2[#This Row],\"-\",0)","v":5},{"$f":"_xlfn.XLOOKUP(AP$9,Tabell2[#Headers],Tabell2[#This Row],\"-\",0)","v":6},{"$f":"_xlfn.XLOOKUP(AQ$9,Tabell2[#Headers],Tabell2[#This Row],\"-\",0)","v":9},{"$f":"_xlfn.XLOOKUP(AR$9,Tabell2[#Headers],Tabell2[#This Row],\"-\",0)","v":8},{"$f":"_xlfn.XLOOKUP(AS$9,Tabell2[#Headers],Tabell2[#This Row],\"-\",0)","v":2},{"$f":"_xlfn.XLOOKUP(AT$9,Tabell2[#Headers],Tabell2[#This Row],\"-\",0)","v":12},{"$f":"_xlfn.XLOOKUP(AU$9,Tabell2[#Headers],Tabell2[#This Row],\"-\",0)","v":7},{"$f":"_xlfn.XLOOKUP(AV$9,Tabell2[#Headers],Tabell2[#This Row],\"-\",0)","v":5},{"$f":"_xlfn.XLOOKUP(AW$9,Tabell2[#Headers],Tabell2[#This Row],\"-\",0)","v":24},{"$f":"_xlfn.XLOOKUP(AX$9,Tabell2[#Headers],Tabell2[#This Row],\"-\",0)","v":3}]
[]
[]
[]
[null,null,null,null,null,null,null,null,null,null,null,null,null,null,null,null,null,null,null,null,null,null,null,null,null,null,null,null,null,null,null,null,null,null,null,null,"Kolonnekjøring"]
[]
[null,null,null,null,null,null,null,null,null,null,null,null,null,null,null,null,null,null,null,null,null,null,null,null,null,null,null,null,null,null,null,null,null,null,null,null,null,2,4,6,8,10,12,14,16,18,20,22,24]
[null,null,null,null,null,null,null,null,null,null,null,null,null,null,null,null,null,null,null,null,null,null,null,null,null,null,null,null,null,null,null,null,null,null,null,null,null,null,"2009 / 2010","2010 / 2011","2011 / 2012","2012 / 2013","2013 / 2014","2014 / 2015","2015 / 2016","2016 / 2017","2017 / 2018","2018 / 2019","2019/2020","2020/2021"]
[null,null,null,null,null,null,null,null,null,null,null,null,null,null,null,null,null,null,null,null,null,null,null,null,null,null,null,null,null,null,null,null,null,null,null,null,null,null,"KK2009 / 2010","KK2010 / 2011","KK2011 / 2012","KK2012 / 2013","KK2013 / 2014","KK2014 / 2015","KK2015 / 2016","KK2016 / 2017","KK2017 / 2018","KK2018 / 2019","KK2019 / 2020","KK2020 / 2021"]
[null,null,null,null,null,null,null,null,null,null,null,null,null,null,null,null,null,null,null,null,null,null,null,null,null,null,null,null,null,null,null,null,null,null,null,null,null,null,"KK","KK","KK","KK","KK","KK","KK","KK","KK","KK","KK","KK"]
[null,null,null,null,null,null,null,null,null,null,null,null,null,null,null,null,null,null,null,null,null,null,null,null,null,null,null,null,null,null,null,null,null,null,null,null,1,{"$f":"VLOOKUP($AK50,Hovedtabell,AL$46,FALSE)","v":"E6 Burfjord - Alta"},{"$f":"_xlfn.XLOOKUP(AM$48,Tabell2[#Headers],$B11:$AE11,\"-\",0)","v":0},{"$f":"_xlfn.XLOOKUP(AN$48,Tabell2[#Headers],$B11:$AE11,\"-\",0)","v":0},{"$f":"_xlfn.XLOOKUP(AO$48,Tabell2[#Headers],$B11:$AE11,\"-\",0)","v":0},{"$f":"_xlfn.XLOOKUP(AP$48,Tabell2[#Headers],$B11:$AE11,\"-\",0)","v":0},{"$f":"_xlfn.XLOOKUP(AQ$48,Tabell2[#Headers],$B11:$AE11,\"-\",0)","v":0},{"$f":"_xlfn.XLOOKUP(AR$48,Tabell2[#Headers],$B11:$AE11,\"-\",0)","v":0},{"$f":"_xlfn.XLOOKUP(AS$48,Tabell2[#Headers],$B11:$AE11,\"-\",0)","v":0},{"$f":"_xlfn.XLOOKUP(AT$48,Tabell2[#Headers],$B11:$AE11,\"-\",0)","v":0},{"$f":"_xlfn.XLOOKUP(AU$48,Tabell2[#Headers],$B11:$AE11,\"-\",0)","v":0},{"$f":"_xlfn.XLOOKUP(AV$48,Tabell2[#Headers],$B11:$AE11,\"-\",0)","v":0},{"$f":"_xlfn.XLOOKUP(AW$48,Tabell2[#Headers],$B11:$AE11,\"-\",0)","v":0},{"$f":"_xlfn.XLOOKUP(AX$48,Tabell2[#Headers],$B11:$AE11,\"-\",0)","v":1}]
[null,null,null,null,null,null,null,null,null,null,null,null,null,null,null,null,null,null,null,null,null,null,null,null,null,null,null,null,null,null,null,null,null,null,null,null,2,"E6 Hatter",{"$f":"_xlfn.XLOOKUP(AM$48,Tabell2[#Headers],$B12:$AE12,\"-\",0)","v":2},{"$f":"_xlfn.XLOOKUP(AN$48,Tabell2[#Headers],$B12:$AE12,\"-\",0)","v":10},{"$f":"_xlfn.XLOOKUP(AO$48,Tabell2[#Headers],$B12:$AE12,\"-\",0)","v":2},{"$f":"_xlfn.XLOOKUP(AP$48,Tabell2[#Headers],$B12:$AE12,\"-\",0)","v":10},{"$f":"_xlfn.XLOOKUP(AQ$48,Tabell2[#Headers],$B12:$AE12,\"-\",0)","v":10},{"$f":"_xlfn.XLOOKUP(AR$48,Tabell2[#Headers],$B12:$AE12,\"-\",0)","v":10},{"$f":"_xlfn.XLOOKUP(AS$48,Tabell2[#Headers],$B12:$AE12,\"-\",0)","v":6},{"$f":"_xlfn.XLOOKUP(AT$48,Tabell2[#Headers],$B12:$AE12,\"-\",0)","v":19},{"$f":"_xlfn.XLOOKUP(AU$48,Tabell2[#Headers],$B12:$AE12,\"-\",0)","v":4},{"$f":"_xlfn.XLOOKUP(AV$48,Tabell2[#Headers],$B12:$AE12,\"-\",0)","v":9},{"$f":"_xlfn.XLOOKUP(AW$48,Tabell2[#Headers],$B12:$AE12,\"-\",0)","v":26},{"$f":"_xlfn.XLOOKUP(AX$48,Tabell2[#Headers],$B12:$AE12,\"-\",0)","v":7}]
[null,null,null,null,null,null,null,null,null,null,null,null,null,null,null,null,null,null,null,null,null,null,null,null,null,null,null,null,null,null,null,null,null,null,null,null,3,"E6 Kråkmofjellet",{"$f":"_xlfn.XLOOKUP(AM$48,Tabell2[#Headers],$B13:$AE13,\"-\",0)","v":0},{"$f":"_xlfn.XLOOKUP(AN$48,Tabell2[#Headers],$B13:$AE13,\"-\",0)","v":0},{"$f":"_xlfn.XLOOKUP(AO$48,Tabell2[#Headers],$B13:$AE13,\"-\",0)","v":0},{"$f":"_xlfn.XLOOKUP(AP$48,Tabell2[#Headers],$B13:$AE13,\"-\",0)","v":0},{"$f":"_xlfn.XLOOKUP(AQ$48,Tabell2[#Headers],$B13:$AE13,\"-\",0)","v":1},{"$f":"_xlfn.XLOOKUP(AR$48,Tabell2[#Headers],$B13:$AE13,\"-\",0)","v":0},{"$f":"_xlfn.XLOOKUP(AS$48,Tabell2[#Headers],$B13:$AE13,\"-\",0)","v":0},{"$f":"_xlfn.XLOOKUP(AT$48,Tabell2[#Headers],$B13:$AE13,\"-\",0)","v":0},{"$f":"_xlfn.XLOOKUP(AU$48,Tabell2[#Headers],$B13:$AE13,\"-\",0)","v":0},{"$f":"_xlfn.XLOOKUP(AV$48,Tabell2[#Headers],$B13:$AE13,\"-\",0)","v":0},{"$f":"_xlfn.XLOOKUP(AW$48,Tabell2[#Headers],$B13:$AE13,\"-\",0)","v":4},{"$f":"_xlfn.XLOOKUP(AX$48,Tabell2[#Headers],$B13:$AE13,\"-\",0)","v":0}]
[null,null,null,null,null,null,null,null,null,null,null,null,null,null,null,null,null,null,null,null,null,null,null,null,null,null,null,null,null,null,null,null,null,null,null,null,4,"E6 Kvænangsfjellet",{"$f":"_xlfn.XLOOKUP(AM$48,Tabell2[#Headers],$B14:$AE14,\"-\",0)","v":4},{"$f":"_xlfn.XLOOKUP(AN$48,Tabell2[#Headers],$B14:$AE14,\"-\",0)","v":8},{"$f":"_xlfn.XLOOKUP(AO$48,Tabell2[#Headers],$B14:$AE14,\"-\",0)","v":1},{"$f":"_xlfn.XLOOKUP(AP$48,Tabell2[#Headers],$B14:$AE14,\"-\",0)","v":18},{"$f":"_xlfn.XLOOKUP(AQ$48,Tabell2[#Headers],$B14:$AE14,\"-\",0)","v":16},{"$f":"_xlfn.XLOOKUP(AR$48,Tabell2[#Headers],$B14:$AE14,\"-\",0)","v":11},{"$f":"_xlfn.XLOOKUP(AS$48,Tabell2[#Headers],$B14:$AE14,\"-\",0)","v":10},{"$f":"_xlfn.XLOOKUP(AT$48,Tabell2[#Headers],$B14:$AE14,\"-\",0)","v":19},{"$f":"_xlfn.XLOOKUP(AU$48,Tabell2[#Headers],$B14:$AE14,\"-\",0)","v":24},{"$f":"_xlfn.XLOOKUP(AV$48,Tabell2[#Headers],$B14:$AE14,\"-\",0)","v":19},{"$f":"_xlfn.XLOOKUP(AW$48,Tabell2[#Headers],$B14:$AE14,\"-\",0)","v":59},{"$f":"_xlfn.XLOOKUP(AX$48,Tabell2[#Headers],$B14:$AE14,\"-\",0)","v":24}]
[null,null,null,null,null,null,null,null,null,null,null,null,null,null,null,null,null,null,null,null,null,null,null,null,null,null,null,null,null,null,null,null,null,null,null,null,5,"E6 Saltfjellet",{"$f":"_xlfn.XLOOKUP(AM$48,Tabell2[#Headers],$B15:$AE15,\"-\",0)","v":6},{"$f":"_xlfn.XLOOKUP(AN$48,Tabell2[#Headers],$B15:$AE15,\"-\",0)","v":28},{"$f":"_xlfn.XLOOKUP(AO$48,Tabell2[#Headers],$B15:$AE15,\"-\",0)","v":30},{"$f":"_xlfn.XLOOKUP(AP$48,Tabell2[#Headers],$B15:$AE15,\"-\",0)","v":7},{"$f":"_xlfn.XLOOKUP(AQ$48,Tabell2[#Headers],$B15:$AE15,\"-\",0)","v":38},{"$f":"_xlfn.XLOOKUP(AR$48,Tabell2[#Headers],$B15:$AE15,\"-\",0)","v":31},{"$f":"_xlfn.XLOOKUP(AS$48,Tabell2[#Headers],$B15:$AE15,\"-\",0)","v":17},{"$f":"_xlfn.XLOOKUP(AT$48,Tabell2[#Headers],$B15:$AE15,\"-\",0)","v":44},{"$f":"_xlfn.XLOOKUP(AU$48,Tabell2[#Headers],$B15:$AE15,\"-\",0)","v":11},{"$f":"_xlfn.XLOOKUP(AV$48,Tabell2[#Headers],$B15:$AE15,\"-\",0)","v":17},{"$f":"_xlfn.XLOOKUP(AW$48,Tabell2[#Headers],$B15:$AE15,\"-\",0)","v":78},{"$f":"_xlfn.XLOOKUP(AX$48,Tabell2[#Headers],$B15:$AE15,\"-\",0)","v":22}]
[null,null,null,null,null,null,null,null,null,null,null,null,null,null,null,null,null,null,null,null,null,null,null,null,null,null,null,null,null,null,null,null,null,null,null,null,6,"E6 Sennalandet",{"$f":"_xlfn.XLOOKUP(AM$48,Tabell2[#Headers],$B16:$AE16,\"-\",0)","v":4},{"$f":"_xlfn.XLOOKUP(AN$48,Tabell2[#Headers],$B16:$AE16,\"-\",0)","v":34},{"$f":"_xlfn.XLOOKUP(AO$48,Tabell2[#Headers],$B16:$AE16,\"-\",0)","v":19},{"$f":"_xlfn.XLOOKUP(AP$48,Tabell2[#Headers],$B16:$AE16,\"-\",0)","v":31},{"$f":"_xlfn.XLOOKUP(AQ$48,Tabell2[#Headers],$B16:$AE16,\"-\",0)","v":37},{"$f":"_xlfn.XLOOKUP(AR$48,Tabell2[#Headers],$B16:$AE16,\"-\",0)","v":20},{"$f":"_xlfn.XLOOKUP(AS$48,Tabell2[#Headers],$B16:$AE16,\"-\",0)","v":13},{"$f":"_xlfn.XLOOKUP(AT$48,Tabell2[#Headers],$B16:$AE16,\"-\",0)","v":57},{"$f":"_xlfn.XLOOKUP(AU$48,Tabell2[#Headers],$B16:$AE16,\"-\",0)","v":26},{"$f":"_xlfn.XLOOKUP(AV$48,Tabell2[#Headers],$B16:$AE16,\"-\",0)","v":8},{"$f":"_xlfn.XLOOKUP(AW$48,Tabell2[#Headers],$B16:$AE16,\"-\",0)","v":104},{"$f":"_xlfn.XLOOKUP(AX$48,Tabell2[#Headers],$B16:$AE16,\"-\",0)","v":17}]
[null,null,null,null,null,null,null,null,null,null,null,null,null,null,null,null,null,null,null,null,null,null,null,null,null,null,null,null,null,null,null,null,null,null,null,null,7,"E6 Ulvsvågskaret",{"$f":"_xlfn.XLOOKUP(AM$48,Tabell2[#Headers],$B17:$AE17,\"-\",0)","v":0},{"$f":"_xlfn.XLOOKUP(AN$48,Tabell2[#Headers],$B17:$AE17,\"-\",0)","v":4},{"$f":"_xlfn.XLOOKUP(AO$48,Tabell2[#Headers],$B17:$AE17,\"-\",0)","v":0},{"$f":"_xlfn.XLOOKUP(AP$48,Tabell2[#Headers],$B17:$AE17,\"-\",0)","v":0},{"$f":"_xlfn.XLOOKUP(AQ$48,Tabell2[#Headers],$B17:$AE17,\"-\",0)","v":0},{"$f":"_xlfn.XLOOKUP(AR$48,Tabell2[#Headers],$B17:$AE17,\"-\",0)","v":0},{"$f":"_xlfn.XLOOKUP(AS$48,Tabell2[#Headers],$B17:$AE17,\"-\",0)","v":0},{"$f":"_xlfn.XLOOKUP(AT$48,Tabell2[#Headers],$B17:$AE17,\"-\",0)","v":0},{"$f":"_xlfn.XLOOKUP(AU$48,Tabell2[#Headers],$B17:$AE17,\"-\",0)","v":0},{"$f":"_xlfn.XLOOKUP(AV$48,Tabell2[#Headers],$B17:$AE17,\"-\",0)","v":0},{"$f":"_xlfn.XLOOKUP(AW$48,Tabell2[#Headers],$B17:$AE17,\"-\",0)","v":0},{"$f":"_xlfn.XLOOKUP(AX$48,Tabell2[#Headers],$B17:$AE17,\"-\",0)","v":0}]
[null,null,null,null,null,null,null,null,null,null,null,null,null,null,null,null,null,null,null,null,null,null,null,null,null,null,null,null,null,null,null,null,null,null,null,null,8,"E10 Bjørnfjell",{"$f":"_xlfn.XLOOKUP(AM$48,Tabell2[#Headers],$B18:$AE18,\"-\",0)","v":11},{"$f":"_xlfn.XLOOKUP(AN$48,Tabell2[#Headers],$B18:$AE18,\"-\",0)","v":30},{"$f":"_xlfn.XLOOKUP(AO$48,Tabell2[#Headers],$B18:$AE18,\"-\",0)","v":8},{"$f":"_xlfn.XLOOKUP(AP$48,Tabell2[#Headers],$B18:$AE18,\"-\",0)","v":21},{"$f":"_xlfn.XLOOKUP(AQ$48,Tabell2[#Headers],$B18:$AE18,\"-\",0)","v":43},{"$f":"_xlfn.XLOOKUP(AR$48,Tabell2[#Headers],$B18:$AE18,\"-\",0)","v":18},{"$f":"_xlfn.XLOOKUP(AS$48,Tabell2[#Headers],$B18:$AE18,\"-\",0)","v":18},{"$f":"_xlfn.XLOOKUP(AT$48,Tabell2[#Headers],$B18:$AE18,\"-\",0)","v":28},{"$f":"_xlfn.XLOOKUP(AU$48,Tabell2[#Headers],$B18:$AE18,\"-\",0)","v":8},{"$f":"_xlfn.XLOOKUP(AV$48,Tabell2[#Headers],$B18:$AE18,\"-\",0)","v":41},{"$f":"_xlfn.XLOOKUP(AW$48,Tabell2[#Headers],$B18:$AE18,\"-\",0)","v":63},{"$f":"_xlfn.XLOOKUP(AX$48,Tabell2[#Headers],$B18:$AE18,\"-\",0)","v":19}]
[null,null,null,null,null,null,null,null,null,null,null,null,null,null,null,null,null,null,null,null,null,null,null,null,null,null,null,null,null,null,null,null,null,null,null,null,9,"E12 Umbukta",{"$f":"_xlfn.XLOOKUP(AM$48,Tabell2[#Headers],$B19:$AE19,\"-\",0)","v":1},{"$f":"_xlfn.XLOOKUP(AN$48,Tabell2[#Headers],$B19:$AE19,\"-\",0)","v":2},{"$f":"_xlfn.XLOOKUP(AO$48,Tabell2[#Headers],$B19:$AE19,\"-\",0)","v":16},{"$f":"_xlfn.XLOOKUP(AP$48,Tabell2[#Headers],$B19:$AE19,\"-\",0)","v":3},{"$f":"_xlfn.XLOOKUP(AQ$48,Tabell2[#Headers],$B19:$AE19,\"-\",0)","v":19},{"$f":"_xlfn.XLOOKUP(AR$48,Tabell2[#Headers],$B19:$AE19,\"-\",0)","v":8},{"$f":"_xlfn.XLOOKUP(AS$48,Tabell2[#Headers],$B19:$AE19,\"-\",0)","v":2},{"$f":"_xlfn.XLOOKUP(AT$48,Tabell2[#Headers],$B19:$AE19,\"-\",0)","v":4},{"$f":"_xlfn.XLOOKUP(AU$48,Tabell2[#Headers],$B19:$AE19,\"-\",0)","v":3},{"$f":"_xlfn.XLOOKUP(AV$48,Tabell2[#Headers],$B19:$AE19,\"-\",0)","v":4},{"$f":"_xlfn.XLOOKUP(AW$48,Tabell2[#Headers],$B19:$AE19,\"-\",0)","v":16},{"$f":"_xlfn.XLOOKUP(AX$48,Tabell2[#Headers],$B19:$AE19,\"-\",0)","v":1}]
[null,null,null,null,null,null,null,null,null,null,null,null,null,null,null,null,null,null,null,null,null,null,null,null,null,null,null,null,null,null,null,null,null,null,null,null,10,"E69 Hønsa - Repvåg",{"$f":"_xlfn.XLOOKUP(AM$48,Tabell2[#Headers],$B20:$AE20,\"-\",0)","v":12},{"$f":"_xlfn.XLOOKUP(AN$48,Tabell2[#Headers],$B20:$AE20,\"-\",0)","v":16},{"$f":"_xlfn.XLOOKUP(AO$48,Tabell2[#Headers],$B20:$AE20,\"-\",0)","v":5},{"$f":"_xlfn.XLOOKUP(AP$48,Tabell2[#Headers],$B20:$AE20,\"-\",0)","v":3},{"$f":"_xlfn.XLOOKUP(AQ$48,Tabell2[#Headers],$B20:$AE20,\"-\",0)","v":3},{"$f":"_xlfn.XLOOKUP(AR$48,Tabell2[#Headers],$B20:$AE20,\"-\",0)","v":12},{"$f":"_xlfn.XLOOKUP(AS$48,Tabell2[#Headers],$B20:$AE20,\"-\",0)","v":10},{"$f":"_xlfn.XLOOKUP(AT$48,Tabell2[#Headers],$B20:$AE20,\"-\",0)","v":20},{"$f":"_xlfn.XLOOKUP(AU$48,Tabell2[#Headers],$B20:$AE20,\"-\",0)","v":3},{"$f":"_xlfn.XLOOKUP(AV$48,Tabell2[#Headers],$B20:$AE20,\"-\",0)","v":15},{"$f":"_xlfn.XLOOKUP(AW$48,Tabell2[#Headers],$B20:$AE20,\"-\",0)","v":58},{"$f":"_xlfn.XLOOKUP(AX$48,Tabell2[#Headers],$B20:$AE20,\"-\",0)","v":14}]
[null,null,null,null,null,null,null,null,null,null,null,null,null,null,null,null,null,null,null,null,null,null,null,null,null,null,null,null,null,null,null,null,null,null,null,null,11,{"$f":"VLOOKUP($AK60,Hovedtabell,AL$46,FALSE)","v":"E69 Nordkapptunnelen - Honningsvåg"},{"$f":"_xlfn.XLOOKUP(AM$48,Tabell2[#Headers],$B21:$AE21,\"-\",0)","v":0},{"$f":"_xlfn.XLOOKUP(AN$48,Tabell2[#Headers],$B21:$AE21,\"-\",0)","v":1},{"$f":"_xlfn.XLOOKUP(AO$48,Tabell2[#Headers],$B21:$AE21,\"-\",0)","v":1},{"$f":"_xlfn.XLOOKUP(AP$48,Tabell2[#Headers],$B21:$AE21,\"-\",0)","v":1},{"$f":"_xlfn.XLOOKUP(AQ$48,Tabell2[#Headers],$B21:$AE21,\"-\",0)","v":0},{"$f":"_xlfn.XLOOKUP(AR$48,Tabell2[#Headers],$B21:$AE21,\"-\",0)","v":3},{"$f":"_xlfn.XLOOKUP(AS$48,Tabell2[#Headers],$B21:$AE21,\"-\",0)","v":1},{"$f":"_xlfn.XLOOKUP(AT$48,Tabell2[#Headers],$B21:$AE21,\"-\",0)","v":0},{"$f":"_xlfn.XLOOKUP(AU$48,Tabell2[#Headers],$B21:$AE21,\"-\",0)","v":3},{"$f":"_xlfn.XLOOKUP(AV$48,Tabell2[#Headers],$B21:$AE21,\"-\",0)","v":1},{"$f":"_xlfn.XLOOKUP(AW$48,Tabell2[#Headers],$B21:$AE21,\"-\",0)","v":6},{"$f":"_xlfn.XLOOKUP(AX$48,Tabell2[#Headers],$B21:$AE21,\"-\",0)","v":3}]
[null,null,null,null,null,null,null,null,null,null,null,null,null,null,null,null,null,null,null,null,null,null,null,null,null,null,null,null,null,null,null,null,null,null,null,null,12,"E69 Olderfjord - Honningsvåg",{"$f":"_xlfn.XLOOKUP(AM$48,Tabell2[#Headers],$B22:$AE22,\"-\",0)","v":22},{"$f":"_xlfn.XLOOKUP(AN$48,Tabell2[#Headers],$B22:$AE22,\"-\",0)","v":33},{"$f":"_xlfn.XLOOKUP(AO$48,Tabell2[#Headers],$B22:$AE22,\"-\",0)","v":10},{"$f":"_xlfn.XLOOKUP(AP$48,Tabell2[#Headers],$B22:$AE22,\"-\",0)","v":7},{"$f":"_xlfn.XLOOKUP(AQ$48,Tabell2[#Headers],$B22:$AE22,\"-\",0)","v":7},{"$f":"_xlfn.XLOOKUP(AR$48,Tabell2[#Headers],$B22:$AE22,\"-\",0)","v":24},{"$f":"_xlfn.XLOOKUP(AS$48,Tabell2[#Headers],$B22:$AE22,\"-\",0)","v":24},{"$f":"_xlfn.XLOOKUP(AT$48,Tabell2[#Headers],$B22:$AE22,\"-\",0)","v":30},{"$f":"_xlfn.XLOOKUP(AU$48,Tabell2[#Headers],$B22:$AE22,\"-\",0)","v":15},{"$f":"_xlfn.XLOOKUP(AV$48,Tabell2[#Headers],$B22:$AE22,\"-\",0)","v":17},{"$f":"_xlfn.XLOOKUP(AW$48,Tabell2[#Headers],$B22:$AE22,\"-\",0)","v":71},{"$f":"_xlfn.XLOOKUP(AX$48,Tabell2[#Headers],$B22:$AE22,\"-\",0)","v":18}]
[null,null,null,null,null,null,null,null,null,null,null,null,null,null,null,null,null,null,null,null,null,null,null,null,null,null,null,null,null,null,null,null,null,null,null,null,13,"E69 Olderfjord - Hønsa",{"$f":"_xlfn.XLOOKUP(AM$48,Tabell2[#Headers],$B23:$AE23,\"-\",0)","v":0},{"$f":"_xlfn.XLOOKUP(AN$48,Tabell2[#Headers],$B23:$AE23,\"-\",0)","v":0},{"$f":"_xlfn.XLOOKUP(AO$48,Tabell2[#Headers],$B23:$AE23,\"-\",0)","v":0},{"$f":"_xlfn.XLOOKUP(AP$48,Tabell2[#Headers],$B23:$AE23,\"-\",0)","v":0},{"$f":"_xlfn.XLOOKUP(AQ$48,Tabell2[#Headers],$B23:$AE23,\"-\",0)","v":0},{"$f":"_xlfn.XLOOKUP(AR$48,Tabell2[#Headers],$B23:$AE23,\"-\",0)","v":0},{"$f":"_xlfn.XLOOKUP(AS$48,Tabell2[#Headers],$B23:$AE23,\"-\",0)","v":0},{"$f":"_xlfn.XLOOKUP(AT$48,Tabell2[#Headers],$B23:$AE23,\"-\",0)","v":0},{"$f":"_xlfn.XLOOKUP(AU$48,Tabell2[#Headers],$B23:$AE23,\"-\",0)","v":0},{"$f":"_xlfn.XLOOKUP(AV$48,Tabell2[#Headers],$B23:$AE23,\"-\",0)","v":0},{"$f":"_xlfn.XLOOKUP(AW$48,Tabell2[#Headers],$B23:$AE23,\"-\",0)","v":0},{"$f":"_xlfn.XLOOKUP(AX$48,Tabell2[#Headers],$B23:$AE23,\"-\",0)","v":0}]
[null,null,null,null,null,null,null,null,null,null,null,null,null,null,null,null,null,null,null,null,null,null,null,null,null,null,null,null,null,null,null,null,null,null,null,null,14,"E69 Repvåg - Nordkapptunnelen",{"$f":"_xlfn.XLOOKUP(AM$48,Tabell2[#Headers],$B24:$AE24,\"-\",0)","v":10},{"$f":"_xlfn.XLOOKUP(AN$48,Tabell2[#Headers],$B24:$AE24,\"-\",0)","v":16},{"$f":"_xlfn.XLOOKUP(AO$48,Tabell2[#Headers],$B24:$AE24,\"-\",0)","v":6},{"$f":"_xlfn.XLOOKUP(AP$48,Tabell2[#Headers],$B24:$AE24,\"-\",0)","v":5},{"$f":"_xlfn.XLOOKUP(AQ$48,Tabell2[#Headers],$B24:$AE24,\"-\",0)","v":5},{"$f":"_xlfn.XLOOKUP(AR$48,Tabell2[#Headers],$B24:$AE24,\"-\",0)","v":14},{"$f":"_xlfn.XLOOKUP(AS$48,Tabell2[#Headers],$B24:$AE24,\"-\",0)","v":13},{"$f":"_xlfn.XLOOKUP(AT$48,Tabell2[#Headers],$B24:$AE24,\"-\",0)","v":26},{"$f":"_xlfn.XLOOKUP(AU$48,Tabell2[#Headers],$B24:$AE24,\"-\",0)","v":15},{"$f":"_xlfn.XLOOKUP(AV$48,Tabell2[#Headers],$B24:$AE24,\"-\",0)","v":17},{"$f":"_xlfn.XLOOKUP(AW$48,Tabell2[#Headers],$B24:$AE24,\"-\",0)","v":69},{"$f":"_xlfn.XLOOKUP(AX$48,Tabell2[#Headers],$B24:$AE24,\"-\",0)","v":18}]
[null,null,null,null,null,null,null,null,null,null,null,null,null,null,null,null,null,null,null,null,null,null,null,null,null,null,null,null,null,null,null,null,null,null,null,null,15,"E69 Skarsvåg - Nordkapp",{"$f":"_xlfn.XLOOKUP(AM$48,Tabell2[#Headers],$B25:$AE25,\"-\",0)","v":5},{"$f":"_xlfn.XLOOKUP(AN$48,Tabell2[#Headers],$B25:$AE25,\"-\",0)","v":7},{"$f":"_xlfn.XLOOKUP(AO$48,Tabell2[#Headers],$B25:$AE25,\"-\",0)","v":19},{"$f":"_xlfn.XLOOKUP(AP$48,Tabell2[#Headers],$B25:$AE25,\"-\",0)","v":22},{"$f":"_xlfn.XLOOKUP(AQ$48,Tabell2[#Headers],$B25:$AE25,\"-\",0)","v":24},{"$f":"_xlfn.XLOOKUP(AR$48,Tabell2[#Headers],$B25:$AE25,\"-\",0)","v":20},{"$f":"_xlfn.XLOOKUP(AS$48,Tabell2[#Headers],$B25:$AE25,\"-\",0)","v":11},{"$f":"_xlfn.XLOOKUP(AT$48,Tabell2[#Headers],$B25:$AE25,\"-\",0)","v":36},{"$f":"_xlfn.XLOOKUP(AU$48,Tabell2[#Headers],$B25:$AE25,\"-\",0)","v":40},{"$f":"_xlfn.XLOOKUP(AV$48,Tabell2[#Headers],$B25:$AE25,\"-\",0)","v":31},{"$f":"_xlfn.XLOOKUP(AW$48,Tabell2[#Headers],$B25:$AE25,\"-\",0)","v":38},{"$f":"_xlfn.XLOOKUP(AX$48,Tabell2[#Headers],$B25:$AE25,\"-\",0)","v":37}]
[null,null,null,null,null,null,null,null,null,null,null,null,null,null,null,null,null,null,null,null,null,null,null,null,null,null,null,null,null,null,null,null,null,null,null,null,16,"E69 Skipsfjordhøgda - Skarsvåg",{"$f":"_xlfn.XLOOKUP(AM$48,Tabell2[#Headers],$B26:$AE26,\"-\",0)","v":19},{"$f":"_xlfn.XLOOKUP(AN$48,Tabell2[#Headers],$B26:$AE26,\"-\",0)","v":52},{"$f":"_xlfn.XLOOKUP(AO$48,Tabell2[#Headers],$B26:$AE26,\"-\",0)","v":12},{"$f":"_xlfn.XLOOKUP(AP$48,Tabell2[#Headers],$B26:$AE26,\"-\",0)","v":31},{"$f":"_xlfn.XLOOKUP(AQ$48,Tabell2[#Headers],$B26:$AE26,\"-\",0)","v":23},{"$f":"_xlfn.XLOOKUP(AR$48,Tabell2[#Headers],$B26:$AE26,\"-\",0)","v":27},{"$f":"_xlfn.XLOOKUP(AS$48,Tabell2[#Headers],$B26:$AE26,\"-\",0)","v":7},{"$f":"_xlfn.XLOOKUP(AT$48,Tabell2[#Headers],$B26:$AE26,\"-\",0)","v":12},{"$f":"_xlfn.XLOOKUP(AU$48,Tabell2[#Headers],$B26:$AE26,\"-\",0)","v":10},{"$f":"_xlfn.XLOOKUP(AV$48,Tabell2[#Headers],$B26:$AE26,\"-\",0)","v":20},{"$f":"_xlfn.XLOOKUP(AW$48,Tabell2[#Headers],$B26:$AE26,\"-\",0)","v":61},{"$f":"_xlfn.XLOOKUP(AX$48,Tabell2[#Headers],$B26:$AE26,\"-\",0)","v":25}]
[null,null,null,null,null,null,null,null,null,null,null,null,null,null,null,null,null,null,null,null,null,null,null,null,null,null,null,null,null,null,null,null,null,null,null,null,17,"Rv 73 Krutfjellet",{"$f":"_xlfn.XLOOKUP(AM$48,Tabell2[#Headers],$B27:$AE27,\"-\",0)","v":0},{"$f":"_xlfn.XLOOKUP(AN$48,Tabell2[#Headers],$B27:$AE27,\"-\",0)","v":0},{"$f":"_xlfn.XLOOKUP(AO$48,Tabell2[#Headers],$B27:$AE27,\"-\",0)","v":2},{"$f":"_xlfn.XLOOKUP(AP$48,Tabell2[#Headers],$B27:$AE27,\"-\",0)","v":0},{"$f":"_xlfn.XLOOKUP(AQ$48,Tabell2[#Headers],$B27:$AE27,\"-\",0)","v":0},{"$f":"_xlfn.XLOOKUP(AR$48,Tabell2[#Headers],$B27:$AE27,\"-\",0)","v":1},{"$f":"_xlfn.XLOOKUP(AS$48,Tabell2[#Headers],$B27:$AE27,\"-\",0)","v":0},{"$f":"_xlfn.XLOOKUP(AT$48,Tabell2[#Headers],$B27:$AE27,\"-\",0)","v":4},{"$f":"_xlfn.XLOOKUP(AU$48,Tabell2[#Headers],$B27:$AE27,\"-\",0)","v":1},{"$f":"_xlfn.XLOOKUP(AV$48,Tabell2[#Headers],$B27:$AE27,\"-\",0)","v":2},{"$f":"_xlfn.XLOOKUP(AW$48,Tabell2[#Headers],$B27:$AE27,\"-\",0)","v":1},{"$f":"_xlfn.XLOOKUP(AX$48,Tabell2[#Headers],$B27:$AE27,\"-\",0)","v":0}]
[null,null,null,null,null,null,null,null,null,null,null,null,null,null,null,null,null,null,null,null,null,null,null,null,null,null,null,null,null,null,null,null,null,null,null,null,18,"Rv 77 Graddis",{"$f":"_xlfn.XLOOKUP(AM$48,Tabell2[#Headers],$B28:$AE28,\"-\",0)","v":0},{"$f":"_xlfn.XLOOKUP(AN$48,Tabell2[#Headers],$B28:$AE28,\"-\",0)","v":0},{"$f":"_xlfn.XLOOKUP(AO$48,Tabell2[#Headers],$B28:$AE28,\"-\",0)","v":0},{"$f":"_xlfn.XLOOKUP(AP$48,Tabell2[#Headers],$B28:$AE28,\"-\",0)","v":0},{"$f":"_xlfn.XLOOKUP(AQ$48,Tabell2[#Headers],$B28:$AE28,\"-\",0)","v":0},{"$f":"_xlfn.XLOOKUP(AR$48,Tabell2[#Headers],$B28:$AE28,\"-\",0)","v":1},{"$f":"_xlfn.XLOOKUP(AS$48,Tabell2[#Headers],$B28:$AE28,\"-\",0)","v":0},{"$f":"_xlfn.XLOOKUP(AT$48,Tabell2[#Headers],$B28:$AE28,\"-\",0)","v":0},{"$f":"_xlfn.XLOOKUP(AU$48,Tabell2[#Headers],$B28:$AE28,\"-\",0)","v":0},{"$f":"_xlfn.XLOOKUP(AV$48,Tabell2[#Headers],$B28:$AE28,\"-\",0)","v":0},{"$f":"_xlfn.XLOOKUP(AW$48,Tabell2[#Headers],$B28:$AE28,\"-\",0)","v":1},{"$f":"_xlfn.XLOOKUP(AX$48,Tabell2[#Headers],$B28:$AE28,\"-\",0)","v":0}]
[null,null,null,null,null,null,null,null,null,null,null,null,null,null,null,null,null,null,null,null,null,null,null,null,null,null,null,null,null,null,null,null,null,null,null,null,19,"Rv 92 Kautokeino - Karasjok",{"$f":"_xlfn.XLOOKUP(AM$48,Tabell2[#Headers],$B29:$AE29,\"-\",0)","v":0},{"$f":"_xlfn.XLOOKUP(AN$48,Tabell2[#Headers],$B29:$AE29,\"-\",0)","v":0},{"$f":"_xlfn.XLOOKUP(AO$48,Tabell2[#Headers],$B29:$AE29,\"-\",0)","v":0},{"$f":"_xlfn.XLOOKUP(AP$48,Tabell2[#Headers],$B29:$AE29,\"-\",0)","v":0},{"$f":"_xlfn.XLOOKUP(AQ$48,Tabell2[#Headers],$B29:$AE29,\"-\",0)","v":0},{"$f":"_xlfn.XLOOKUP(AR$48,Tabell2[#Headers],$B29:$AE29,\"-\",0)","v":0},{"$f":"_xlfn.XLOOKUP(AS$48,Tabell2[#Headers],$B29:$AE29,\"-\",0)","v":1},{"$f":"_xlfn.XLOOKUP(AT$48,Tabell2[#Headers],$B29:$AE29,\"-\",0)","v":0},{"$f":"_xlfn.XLOOKUP(AU$48,Tabell2[#Headers],$B29:$AE29,\"-\",0)","v":0},{"$f":"_xlfn.XLOOKUP(AV$48,Tabell2[#Headers],$B29:$AE29,\"-\",0)","v":0},{"$f":"_xlfn.XLOOKUP(AW$48,Tabell2[#Headers],$B29:$AE29,\"-\",0)","v":0},{"$f":"_xlfn.XLOOKUP(AX$48,Tabell2[#Headers],$B29:$AE29,\"-\",0)","v":0}]
[null,null,null,null,null,null,null,null,null,null,null,null,null,null,null,null,null,null,null,null,null,null,null,null,null,null,null,null,null,null,null,null,null,null,null,null,20,"E45 Kautokeino - Alta",{"$f":"_xlfn.XLOOKUP(AM$48,Tabell2[#Headers],$B30:$AE30,\"-\",0)","v":0},{"$f":"_xlfn.XLOOKUP(AN$48,Tabell2[#Headers],$B30:$AE30,\"-\",0)","v":0},{"$f":"_xlfn.XLOOKUP(AO$48,Tabell2[#Headers],$B30:$AE30,\"-\",0)","v":0},{"$f":"_xlfn.XLOOKUP(AP$48,Tabell2[#Headers],$B30:$AE30,\"-\",0)","v":0},{"$f":"_xlfn.XLOOKUP(AQ$48,Tabell2[#Headers],$B30:$AE30,\"-\",0)","v":0},{"$f":"_xlfn.XLOOKUP(AR$48,Tabell2[#Headers],$B30:$AE30,\"-\",0)","v":0},{"$f":"_xlfn.XLOOKUP(AS$48,Tabell2[#Headers],$B30:$AE30,\"-\",0)","v":1},{"$f":"_xlfn.XLOOKUP(AT$48,Tabell2[#Headers],$B30:$AE30,\"-\",0)","v":2},{"$f":"_xlfn.XLOOKUP(AU$48,Tabell2[#Headers],$B30:$AE30,\"-\",0)","v":0},{"$f":"_xlfn.XLOOKUP(AV$48,Tabell2[#Headers],$B30:$AE30,\"-\",0)","v":0},{"$f":"_xlfn.XLOOKUP(AW$48,Tabell2[#Headers],$B30:$AE30,\"-\",0)","v":0},{"$f":"_xlfn.XLOOKUP(AX$48,Tabell2[#Headers],$B30:$AE30,\"-\",0)","v":0}]
[null,null,null,null,null,null,null,null,null,null,null,null,null,null,null,null,null,null,null,null,null,null,null,null,null,null,null,null,null,null,null,null,null,null,null,null,21,"Rv 94 Kvalsund - Hammerfest",{"$f":"_xlfn.XLOOKUP(AM$48,Tabell2[#Headers],$B31:$AE31,\"-\",0)","v":3},{"$f":"_xlfn.XLOOKUP(AN$48,Tabell2[#Headers],$B31:$AE31,\"-\",0)","v":13},{"$f":"_xlfn.XLOOKUP(AO$48,Tabell2[#Headers],$B31:$AE31,\"-\",0)","v":4},{"$f":"_xlfn.XLOOKUP(AP$48,Tabell2[#Headers],$B31:$AE31,\"-\",0)","v":6},{"$f":"_xlfn.XLOOKUP(AQ$48,Tabell2[#Headers],$B31:$AE31,\"-\",0)","v":6},{"$f":"_xlfn.XLOOKUP(AR$48,Tabell2[#Headers],$B31:$AE31,\"-\",0)","v":3},{"$f":"_xlfn.XLOOKUP(AS$48,Tabell2[#Headers],$B31:$AE31,\"-\",0)","v":6},{"$f":"_xlfn.XLOOKUP(AT$48,Tabell2[#Headers],$B31:$AE31,\"-\",0)","v":4},{"$f":"_xlfn.XLOOKUP(AU$48,Tabell2[#Headers],$B31:$AE31,\"-\",0)","v":1},{"$f":"_xlfn.XLOOKUP(AV$48,Tabell2[#Headers],$B31:$AE31,\"-\",0)","v":3},{"$f":"_xlfn.XLOOKUP(AW$48,Tabell2[#Headers],$B31:$AE31,\"-\",0)","v":17},{"$f":"_xlfn.XLOOKUP(AX$48,Tabell2[#Headers],$B31:$AE31,\"-\",0)","v":2}]
[null,null,null,null,null,null,null,null,null,null,null,null,null,null,null,null,null,null,null,null,null,null,null,null,null,null,null,null,null,null,null,null,null,null,null,null,22,"Fv 8038 Gjesværkrysset - Gjesvær",{"$f":"_xlfn.XLOOKUP(AM$48,Tabell2[#Headers],$B32:$AE32,\"-\",0)","v":16},{"$f":"_xlfn.XLOOKUP(AN$48,Tabell2[#Headers],$B32:$AE32,\"-\",0)","v":52},{"$f":"_xlfn.XLOOKUP(AO$48,Tabell2[#Headers],$B32:$AE32,\"-\",0)","v":11},{"$f":"_xlfn.XLOOKUP(AP$48,Tabell2[#Headers],$B32:$AE32,\"-\",0)","v":31},{"$f":"_xlfn.XLOOKUP(AQ$48,Tabell2[#Headers],$B32:$AE32,\"-\",0)","v":22},{"$f":"_xlfn.XLOOKUP(AR$48,Tabell2[#Headers],$B32:$AE32,\"-\",0)","v":29},{"$f":"_xlfn.XLOOKUP(AS$48,Tabell2[#Headers],$B32:$AE32,\"-\",0)","v":7},{"$f":"_xlfn.XLOOKUP(AT$48,Tabell2[#Headers],$B32:$AE32,\"-\",0)","v":14},{"$f":"_xlfn.XLOOKUP(AU$48,Tabell2[#Headers],$B32:$AE32,\"-\",0)","v":10},{"$f":"_xlfn.XLOOKUP(AV$48,Tabell2[#Headers],$B32:$AE32,\"-\",0)","v":18},{"$f":"_xlfn.XLOOKUP(AW$48,Tabell2[#Headers],$B32:$AE32,\"-\",0)","v":55},{"$f":"_xlfn.XLOOKUP(AX$48,Tabell2[#Headers],$B32:$AE32,\"-\",0)","v":22}]
[null,null,null,null,null,null,null,null,null,null,null,null,null,null,null,null,null,null,null,null,null,null,null,null,null,null,null,null,null,null,null,null,null,null,null,null,23,"Fv 889 Smørfjord - Havøysund",{"$f":"_xlfn.XLOOKUP(AM$48,Tabell2[#Headers],$B33:$AE33,\"-\",0)","v":" - "},{"$f":"_xlfn.XLOOKUP(AN$48,Tabell2[#Headers],$B33:$AE33,\"-\",0)","v":54},{"$f":"_xlfn.XLOOKUP(AO$48,Tabell2[#Headers],$B33:$AE33,\"-\",0)","v":6},{"$f":"_xlfn.XLOOKUP(AP$48,Tabell2[#Headers],$B33:$AE33,\"-\",0)","v":38},{"$f":"_xlfn.XLOOKUP(AQ$48,Tabell2[#Headers],$B33:$AE33,\"-\",0)","v":39},{"$f":"_xlfn.XLOOKUP(AR$48,Tabell2[#Headers],$B33:$AE33,\"-\",0)","v":26},{"$f":"_xlfn.XLOOKUP(AS$48,Tabell2[#Headers],$B33:$AE33,\"-\",0)","v":44},{"$f":"_xlfn.XLOOKUP(AT$48,Tabell2[#Headers],$B33:$AE33,\"-\",0)","v":40},{"$f":"_xlfn.XLOOKUP(AU$48,Tabell2[#Headers],$B33:$AE33,\"-\",0)","v":33},{"$f":"_xlfn.XLOOKUP(AV$48,Tabell2[#Headers],$B33:$AE33,\"-\",0)","v":41},{"$f":"_xlfn.XLOOKUP(AW$48,Tabell2[#Headers],$B33:$AE33,\"-\",0)","v":69},{"$f":"_xlfn.XLOOKUP(AX$48,Tabell2[#Headers],$B33:$AE33,\"-\",0)","v":16}]
[null,null,null,null,null,null,null,null,null,null,null,null,null,null,null,null,null,null,null,null,null,null,null,null,null,null,null,null,null,null,null,null,null,null,null,null,24,"Fv 891 Båtsfjordfjellet",{"$f":"_xlfn.XLOOKUP(AM$48,Tabell2[#Headers],$B34:$AE34,\"-\",0)","v":" - "},{"$f":"_xlfn.XLOOKUP(AN$48,Tabell2[#Headers],$B34:$AE34,\"-\",0)","v":75},{"$f":"_xlfn.XLOOKUP(AO$48,Tabell2[#Headers],$B34:$AE34,\"-\",0)","v":44},{"$f":"_xlfn.XLOOKUP(AP$48,Tabell2[#Headers],$B34:$AE34,\"-\",0)","v":75},{"$f":"_xlfn.XLOOKUP(AQ$48,Tabell2[#Headers],$B34:$AE34,\"-\",0)","v":61},{"$f":"_xlfn.XLOOKUP(AR$48,Tabell2[#Headers],$B34:$AE34,\"-\",0)","v":69},{"$f":"_xlfn.XLOOKUP(AS$48,Tabell2[#Headers],$B34:$AE34,\"-\",0)","v":30},{"$f":"_xlfn.XLOOKUP(AT$48,Tabell2[#Headers],$B34:$AE34,\"-\",0)","v":50},{"$f":"_xlfn.XLOOKUP(AU$48,Tabell2[#Headers],$B34:$AE34,\"-\",0)","v":41},{"$f":"_xlfn.XLOOKUP(AV$48,Tabell2[#Headers],$B34:$AE34,\"-\",0)","v":31},{"$f":"_xlfn.XLOOKUP(AW$48,Tabell2[#Headers],$B34:$AE34,\"-\",0)","v":86},{"$f":"_xlfn.XLOOKUP(AX$48,Tabell2[#Headers],$B34:$AE34,\"-\",0)","v":36}]
[null,null,null,null,null,null,null,null,null,null,null,null,null,null,null,null,null,null,null,null,null,null,null,null,null,null,null,null,null,null,null,null,null,null,null,null,25,"E75 Domen (Kiberg-Vardø)",{"$f":"_xlfn.XLOOKUP(AM$48,Tabell2[#Headers],$B35:$AE35,\"-\",0)","v":1},{"$f":"_xlfn.XLOOKUP(AN$48,Tabell2[#Headers],$B35:$AE35,\"-\",0)","v":13},{"$f":"_xlfn.XLOOKUP(AO$48,Tabell2[#Headers],$B35:$AE35,\"-\",0)","v":0},{"$f":"_xlfn.XLOOKUP(AP$48,Tabell2[#Headers],$B35:$AE35,\"-\",0)","v":6},{"$f":"_xlfn.XLOOKUP(AQ$48,Tabell2[#Headers],$B35:$AE35,\"-\",0)","v":6},{"$f":"_xlfn.XLOOKUP(AR$48,Tabell2[#Headers],$B35:$AE35,\"-\",0)","v":0},{"$f":"_xlfn.XLOOKUP(AS$48,Tabell2[#Headers],$B35:$AE35,\"-\",0)","v":0},{"$f":"_xlfn.XLOOKUP(AT$48,Tabell2[#Headers],$B35:$AE35,\"-\",0)","v":4},{"$f":"_xlfn.XLOOKUP(AU$48,Tabell2[#Headers],$B35:$AE35,\"-\",0)","v":8},{"$f":"_xlfn.XLOOKUP(AV$48,Tabell2[#Headers],$B35:$AE35,\"-\",0)","v":2},{"$f":"_xlfn.XLOOKUP(AW$48,Tabell2[#Headers],$B35:$AE35,\"-\",0)","v":35},{"$f":"_xlfn.XLOOKUP(AX$48,Tabell2[#Headers],$B35:$AE35,\"-\",0)","v":5}]
[null,null,null,null,null,null,null,null,null,null,null,null,null,null,null,null,null,null,null,null,null,null,null,null,null,null,null,null,null,null,null,null,null,null,null,null,26,"Fv 888 Nordkynvegen (Ifjord - Mehamn)",{"$f":"_xlfn.XLOOKUP(AM$48,Tabell2[#Headers],$B36:$AE36,\"-\",0)","v":" - "},{"$f":"_xlfn.XLOOKUP(AN$48,Tabell2[#Headers],$B36:$AE36,\"-\",0)","v":137},{"$f":"_xlfn.XLOOKUP(AO$48,Tabell2[#Headers],$B36:$AE36,\"-\",0)","v":48},{"$f":"_xlfn.XLOOKUP(AP$48,Tabell2[#Headers],$B36:$AE36,\"-\",0)","v":65},{"$f":"_xlfn.XLOOKUP(AQ$48,Tabell2[#Headers],$B36:$AE36,\"-\",0)","v":62},{"$f":"_xlfn.XLOOKUP(AR$48,Tabell2[#Headers],$B36:$AE36,\"-\",0)","v":43},{"$f":"_xlfn.XLOOKUP(AS$48,Tabell2[#Headers],$B36:$AE36,\"-\",0)","v":66},{"$f":"_xlfn.XLOOKUP(AT$48,Tabell2[#Headers],$B36:$AE36,\"-\",0)","v":117},{"$f":"_xlfn.XLOOKUP(AU$48,Tabell2[#Headers],$B36:$AE36,\"-\",0)","v":71},{"$f":"_xlfn.XLOOKUP(AV$48,Tabell2[#Headers],$B36:$AE36,\"-\",0)","v":74},{"$f":"_xlfn.XLOOKUP(AW$48,Tabell2[#Headers],$B36:$AE36,\"-\",0)","v":177},{"$f":"_xlfn.XLOOKUP(AX$48,Tabell2[#Headers],$B36:$AE36,\"-\",0)","v":74}]
[null,null,null,null,null,null,null,null,null,null,null,null,null,null,null,null,null,null,null,null,null,null,null,null,null,null,null,null,null,null,null,null,null,null,null,null,27,{"$f":"VLOOKUP($AK76,Hovedtabell,AL$46,FALSE)","v":"Fv 98 Ifjordfjellet"},{"$f":"_xlfn.XLOOKUP(AM$48,Tabell2[#Headers],$B37:$AE37,\"-\",0)","v":" - "},{"$f":"_xlfn.XLOOKUP(AN$48,Tabell2[#Headers],$B37:$AE37,\"-\",0)","v":110},{"$f":"_xlfn.XLOOKUP(AO$48,Tabell2[#Headers],$B37:$AE37,\"-\",0)","v":54},{"$f":"_xlfn.XLOOKUP(AP$48,Tabell2[#Headers],$B37:$AE37,\"-\",0)","v":57},{"$f":"_xlfn.XLOOKUP(AQ$48,Tabell2[#Headers],$B37:$AE37,\"-\",0)","v":49},{"$f":"_xlfn.XLOOKUP(AR$48,Tabell2[#Headers],$B37:$AE37,\"-\",0)","v":25},{"$f":"_xlfn.XLOOKUP(AS$48,Tabell2[#Headers],$B37:$AE37,\"-\",0)","v":37},{"$f":"_xlfn.XLOOKUP(AT$48,Tabell2[#Headers],$B37:$AE37,\"-\",0)","v":56},{"$f":"_xlfn.XLOOKUP(AU$48,Tabell2[#Headers],$B37:$AE37,\"-\",0)","v":39},{"$f":"_xlfn.XLOOKUP(AV$48,Tabell2[#Headers],$B37:$AE37,\"-\",0)","v":39},{"$f":"_xlfn.XLOOKUP(AW$48,Tabell2[#Headers],$B37:$AE37,\"-\",0)","v":84},{"$f":"_xlfn.XLOOKUP(AX$48,Tabell2[#Headers],$B37:$AE37,\"-\",0)","v":36}]
[null,null,null,null,null,null,null,null,null,null,null,null,null,null,null,null,null,null,null,null,null,null,null,null,null,null,null,null,null,null,null,null,null,null,null,null,28,"Fv 890 Kongsfjordfjellet",{"$f":"_xlfn.XLOOKUP(AM$48,Tabell2[#Headers],$B38:$AE38,\"-\",0)","v":" - "},{"$f":"_xlfn.XLOOKUP(AN$48,Tabell2[#Headers],$B38:$AE38,\"-\",0)","v":75},{"$f":"_xlfn.XLOOKUP(AO$48,Tabell2[#Headers],$B38:$AE38,\"-\",0)","v":44},{"$f":"_xlfn.XLOOKUP(AP$48,Tabell2[#Headers],$B38:$AE38,\"-\",0)","v":73},{"$f":"_xlfn.XLOOKUP(AQ$48,Tabell2[#Headers],$B38:$AE38,\"-\",0)","v":57},{"$f":"_xlfn.XLOOKUP(AR$48,Tabell2[#Headers],$B38:$AE38,\"-\",0)","v":53},{"$f":"_xlfn.XLOOKUP(AS$48,Tabell2[#Headers],$B38:$AE38,\"-\",0)","v":18},{"$f":"_xlfn.XLOOKUP(AT$48,Tabell2[#Headers],$B38:$AE38,\"-\",0)","v":29},{"$f":"_xlfn.XLOOKUP(AU$48,Tabell2[#Headers],$B38:$AE38,\"-\",0)","v":27},{"$f":"_xlfn.XLOOKUP(AV$48,Tabell2[#Headers],$B38:$AE38,\"-\",0)","v":23},{"$f":"_xlfn.XLOOKUP(AW$48,Tabell2[#Headers],$B38:$AE38,\"-\",0)","v":78},{"$f":"_xlfn.XLOOKUP(AX$48,Tabell2[#Headers],$B38:$AE38,\"-\",0)","v":29}]
[null,null,null,null,null,null,null,null,null,null,null,null,null,null,null,null,null,null,null,null,null,null,null,null,null,null,null,null,null,null,null,null,null,null,null,null,29,"Fv 98 Børselvfjellet (Børselv - Kunes)",{"$f":"_xlfn.XLOOKUP(AM$48,Tabell2[#Headers],$B39:$AE39,\"-\",0)","v":" - "},{"$f":"_xlfn.XLOOKUP(AN$48,Tabell2[#Headers],$B39:$AE39,\"-\",0)","v":1},{"$f":"_xlfn.XLOOKUP(AO$48,Tabell2[#Headers],$B39:$AE39,\"-\",0)","v":0},{"$f":"_xlfn.XLOOKUP(AP$48,Tabell2[#Headers],$B39:$AE39,\"-\",0)","v":3},{"$f":"_xlfn.XLOOKUP(AQ$48,Tabell2[#Headers],$B39:$AE39,\"-\",0)","v":0},{"$f":"_xlfn.XLOOKUP(AR$48,Tabell2[#Headers],$B39:$AE39,\"-\",0)","v":1},{"$f":"_xlfn.XLOOKUP(AS$48,Tabell2[#Headers],$B39:$AE39,\"-\",0)","v":0},{"$f":"_xlfn.XLOOKUP(AT$48,Tabell2[#Headers],$B39:$AE39,\"-\",0)","v":11},{"$f":"_xlfn.XLOOKUP(AU$48,Tabell2[#Headers],$B39:$AE39,\"-\",0)","v":0},{"$f":"_xlfn.XLOOKUP(AV$48,Tabell2[#Headers],$B39:$AE39,\"-\",0)","v":0},{"$f":"_xlfn.XLOOKUP(AW$48,Tabell2[#Headers],$B39:$AE39,\"-\",0)","v":15},{"$f":"_xlfn.XLOOKUP(AX$48,Tabell2[#Headers],$B39:$AE39,\"-\",0)","v":11}]
[null,null,null,null,null,null,null,null,null,null,null,null,null,null,null,null,null,null,null,null,null,null,null,null,null,null,null,null,null,null,null,null,null,null,null,null,30,"Fv 813 Beiarfjellet (Misvær - Storjord)",{"$f":"_xlfn.XLOOKUP(AM$48,Tabell2[#Headers],$B40:$AE40,\"-\",0)","v":" - "},{"$f":"_xlfn.XLOOKUP(AN$48,Tabell2[#Headers],$B40:$AE40,\"-\",0)","v":17},{"$f":"_xlfn.XLOOKUP(AO$48,Tabell2[#Headers],$B40:$AE40,\"-\",0)","v":8},{"$f":"_xlfn.XLOOKUP(AP$48,Tabell2[#Headers],$B40:$AE40,\"-\",0)","v":2},{"$f":"_xlfn.XLOOKUP(AQ$48,Tabell2[#Headers],$B40:$AE40,\"-\",0)","v":13},{"$f":"_xlfn.XLOOKUP(AR$48,Tabell2[#Headers],$B40:$AE40,\"-\",0)","v":16},{"$f":"_xlfn.XLOOKUP(AS$48,Tabell2[#Headers],$B40:$AE40,\"-\",0)","v":6},{"$f":"_xlfn.XLOOKUP(AT$48,Tabell2[#Headers],$B40:$AE40,\"-\",0)","v":19},{"$f":"_xlfn.XLOOKUP(AU$48,Tabell2[#Headers],$B40:$AE40,\"-\",0)","v":6},{"$f":"_xlfn.XLOOKUP(AV$48,Tabell2[#Headers],$B40:$AE40,\"-\",0)","v":10},{"$f":"_xlfn.XLOOKUP(AW$48,Tabell2[#Headers],$B40:$AE40,\"-\",0)","v":43},{"$f":"_xlfn.XLOOKUP(AX$48,Tabell2[#Headers],$B40:$AE40,\"-\",0)","v":2}]

{"sheet":"Trend Midlertidig Stengt","index":1,"n_rows":34,"n_cols":20,"rows_kept":34,"cut":false,"hidden":false,"merged":[[5,1,6,2],[3,4,3,12]]}
[null,null,"Trend MS"]
[]
[]
[null,"Midlertidig stengt",null,null,"Finn nummeret til strekningen du ønsker i tabellen til høyre og skriv det i det gule feltet.",null,null,null,null,null,null,null,null,null,null,null,null,null,"Nr","Fjellovergang/strekning"]
[null,null,2,3,5,7,9,11,13,15,17,19,21,23,25,null,null,null,1,{"$f":"VLOOKUP(S5,Hovedtabell,2,FALSE)","v":"E6 Burfjord - Alta"}]
[null,"↓",null,"2009 / 2010","2010 / 2011","2011 / 2012","2012 / 2013","2013 / 2014","2014 / 2015","2015 / 2016","2016 / 2017","2017 / 2018","2018 / 2019","2019/2020","2021/2020",null,null,null,2,"E6 Hatter"]
[null,null,null,"MS","MS","MS","MS","MS","MS","MS","MS","MS","MS","MS","MS",null,null,null,3,"E6 Kråkmofjellet"]
[null,22,{"$f":"VLOOKUP(B8,Hovedtabell,C5,FALSE)","v":"Fv 8038 Gjesværkrysset - Gjesvær"},{"$f":"VLOOKUP($B$8,Hovedtabell,D5,FALSE)","v":9},20,8,26,30,18,16,32,28,{"$f":"VLOOKUP($B$8,Hovedtabell,M5,FALSE)","v":18},{"$f":"VLOOKUP($B$8,Hovedtabell,N5,FALSE)","v":65},21,null,null,null,4,"E6 Kvænangsfjellet"]
[null,null,"Snitt",{"$f":"AVERAGE($D$8:$O$8)","v":24.25},{"$f":"AVERAGE($D$8:$O$8)","v":24.25},24.25,24.25,24.25,24.25,24.25,24.25,24.25,24.25,24.25,24.25,null,null,null,5,"E6 Saltfjellet"]
[null,null,null,null,null,null,null,null,null,null,null,null,null,null,null,null,null,null,6,"E6 Sennalandet"]
[null,null,null,null,null,null,null,null,null,null,null,null,null,null,null,null,null,null,7,"E6 Ulvsvågskaret"]
[null,null,null,null,null,null,null,null,null,null,null,null,null,null,null,null,null,null,8,"E10 Bjørnfjell"]
[null,null,null,null,null,null,null,null,null,null,null,null,null,null,null,null,null,null,9,"E12 Umbukta"]
[null,null,null,null,null,null,null,null,null,null,null,null,null,null,null,null,null,null,10,"E69 Hønsa - Repvåg"]
[null,null,null,null,null,null,null,null,null,null,null,null,null,null,null,null,null,null,11,"E69 Nordkapptunnelen - Honningsvåg"]
[null,null,null,null,null,null,null,null,null,null,null,null,null,null,null,null,null,null,12,"E69 Olderfjord - Honningsvåg"]
[null,null,null,null,null,null,null,null,null,null,null,null,null,null,null,null,null,null,13,"E69 Olderfjord - Hønsa"]
[null,null,null,null,null,null,null,null,null,null,null,null,null,null,null,null,null,null,14,"E69 Repvåg - Nordkapptunnelen"]
[null,null,null,null,null,null,null,null,null,null,null,null,null,null,null,null,null,null,15,"E69 Skarsvåg - Nordkapp"]
[null,null,null,null,null,null,null,null,null,null,null,null,null,null,null,null,null,null,16,"E69 Skipsfjordhøgda - Skarsvåg"]
[null,null,null,null,null,null,null,null,null,null,null,null,null,null,null,null,null,null,17,"Rv 73 Krutfjellet"]
[null,null,null,null,null,null,null,null,null,null,null,null,null,null,null,null,null,null,18,"Rv 77 Graddis"]
[null,null,null,null,null,null,null,null,null,null,null,null,null,null,null,null,null,null,19,"Rv 92 Kautokeino - Karasjok"]
[null,null,null,null,null,null,null,null,null,null,null,null,null,null,null,null,null,null,20,"E45 Kautokeino - Alta"]
[null,null,null,null,null,null,null,null,null,null,null,null,null,null,null,null,null,null,21,"Rv 94 Kvalsund - Hammerfest"]
[null,null,null,null,null,null,null,null,null,null,null,null,null,null,null,null,null,null,22,"Fv 8038 Gjesværkrysset - Gjesvær"]
[null,null,null,null,null,null,null,null,null,null,null,null,null,null,null,null,null,null,23,"Fv 889 Smørfjord - Havøysund"]
[null,null,null,null,null,null,null,null,null,null,null,null,null,null,null,null,null,null,24,"Fv 891 Båtsfjordfjellet"]
[null,null,null,null,null,null,null,null,null,null,null,null,null,null,null,null,null,null,25,"E75 Domen (Kiberg-Vardø)"]
[null,null,null,null,null,null,null,null,null,null,null,"Gjennomsnitt (blå linje):",{"$f":"AVERAGE(D8:N8)","v":24.545454545454547},null,null,null,null,null,26,"Fv 888 Nordkynvegen (Ifjord - Mehamn)"]
[null,null,null,null,null,null,null,null,null,null,null,null,null,null,null,null,null,null,27,"Fv 98 Ifjordfjellet"]
[null,null,null,null,null,null,null,null,null,null,null,null,null,null,null,null,null,null,28,"Fv 890 Kongsfjordfjellet"]
[null,null,null,null,null,null,null,null,null,null,null,null,null,null,null,null,null,null,29,{"$f":"VLOOKUP(S33,Hovedtabell,2,FALSE)","v":"Fv 98 Børselvfjellet (Børselv - Kunes)"}]
[null,null,null,null,null,null,null,null,null,null,null,null,null,null,null,null,null,null,30,{"$f":"VLOOKUP(S34,Hovedtabell,2,FALSE)","v":"Fv 813 Beiarfjellet (Misvær - Storjord)"}]

{"sheet":"Trend Kolonnekjøring","index":2,"n_rows":34,"n_cols":20,"rows_kept":34,"cut":false,"hidden":false,"merged":[[5,1,6,2],[3,4,3,12]]}
[null,null,"Trend KK"]
[]
[]
[null,"Kolonnekjøring",null,null,"Finn nummeret til strekningen du ønsker i tabellen til høyre og skriv det i det gule feltet til venstre.",null,null,null,null,null,null,null,null,null,null,null,null,null,"Nr","Fjellovergang/strekning"]
[null,null,2,4,6,8,10,12,14,16,18,20,22,24,26,null,null,null,1,{"$f":"VLOOKUP(S5,Hovedtabell,2,FALSE)","v":"E6 Burfjord - Alta"}]
[null,"↓",null,"2009 / 2010","2010 / 2011","2011 / 2012","2012 / 2013","2013 / 2014","2014 / 2015","2015 / 2016","2016 / 2017","2017 / 2018","2018 / 2019","2019 / 2020","2020 / 2021",null,null,null,2,"E6 Hatter"]
[null,null,null,"KK","KK","KK","KK","KK","KK","KK","KK","KK","KK","KK",null,null,null,null,3,"E6 Kråkmofjellet"]
[null,22,{"$f":"VLOOKUP($B$8,Hovedtabell,C5,FALSE)","v":"Fv 8038 Gjesværkrysset - Gjesvær"},{"$f":"VLOOKUP($B$8,Hovedtabell,D5,FALSE)","v":16},52,11,31,22,29,7,14,10,18,{"$f":"VLOOKUP($B$8,Hovedtabell,N5,FALSE)","v":55},22,null,null,null,4,"E6 Kvænangsfjellet"]
[null,null,"Snitt",{"$f":"AVERAGE($D$8:$O$8)","v":23.916666666666668},{"$f":"AVERAGE($D$8:$O$8)","v":23.916666666666668},23.916666666666668,23.916666666666668,23.916666666666668,23.916666666666668,23.916666666666668,23.916666666666668,23.916666666666668,23.916666666666668,23.916666666666668,23.916666666666668,null,null,null,5,"E6 Saltfjellet"]
[null,null,null,null,null,null,null,null,null,null,null,null,null,null,null,null,null,null,6,"E6 Sennalandet"]
[null,null,null,null,null,null,null,null,null,null,null,null,null,null,null,null,null,null,7,"E6 Ulvsvågskaret"]
[null,null,null,null,null,null,null,null,null,null,null,null,null,null,null,null,null,null,8,"E10 Bjørnfjell"]
[null,null,null,null,null,null,null,null,null,null,null,null,null,null,null,null,null,null,9,"E12 Umbukta"]
[null,null,null,null,null,null,null,null,null,null,null,null,null,null,null,null,null,null,10,"E69 Hønsa - Repvåg"]
[null,null,null,null,null,null,null,null,null,null,null,null,null,null,null,null,null,null,11,"E69 Nordkapptunnelen - Honningsvåg"]
[null,null,null,null,null,null,null,null,null,null,null,null,null,null,null,null,null,null,12,"E69 Olderfjord - Honningsvåg"]
[null,null,null,null,null,null,null,null,null,null,null,null,null,null,null,null,null,null,13,"E69 Olderfjord - Hønsa"]
[null,null,null,null,null,null,null,null,null,null,null,null,null,null,null,null,null,null,14,"E69 Repvåg - Nordkapptunnelen"]
[null,null,null,null,null,null,null,null,null,null,null,null,null,null,null,null,null,null,15,"E69 Skarsvåg - Nordkapp"]
[null,null,null,null,null,null,null,null,null,null,null,null,null,null,null,null,null,null,16,"E69 Skipsfjordhøgda - Skarsvåg"]
[null,null,null,null,null,null,null,null,null,null,null,null,null,null,null,null,null,null,17,"Rv 73 Krutfjellet"]
[null,null,null,null,null,null,null,null,null,null,null,null,null,null,null,null,null,null,18,"Rv 77 Graddis"]
[null,null,null,null,null,null,null,null,null,null,null,null,null,null,null,null,null,null,19,"Rv 92 Kautokeino - Karasjok"]
[null,null,null,null,null,null,null,null,null,null,null,null,null,null,null,null,null,null,20,"E45 Kautokeino - Alta"]
[null,null,null,null,null,null,null,null,null,null,null,null,null,null,null,null,null,null,21,"Rv 94 Kvalsund - Hammerfest"]
[null,null,null,null,null,null,null,null,null,null,null,null,null,null,null,null,null,null,22,"Fv 8038 Gjesværkrysset - Gjesvær"]
[null,null,null,null,null,null,null,null,null,null,null,null,null,null,null,null,null,null,23,"Fv 889 Smørfjord - Havøysund"]
[null,null,null,null,null,null,null,null,null,null,null,null,null,null,null,null,null,null,24,"Fv 891 Båtsfjordfjellet"]
[null,null,null,null,null,null,null,null,null,null,null,null,null,null,null,null,null,null,25,"E75 Domen (Kiberg-Vardø)"]
[null,null,null,null,null,null,null,null,null,null,null,"Gjennomsnitt (blå linje):",{"$f":"AVERAGE(D8:N8)","v":24.09090909090909},null,null,null,null,null,26,"Fv 888 Nordkynvegen (Ifjord - Mehamn)"]
[null,null,null,null,null,null,null,null,null,null,null,null,null,null,null,null,null,null,27,"Fv 98 Ifjordfjellet"]
[null,null,null,null,null,null,null,null,null,null,null,null,null,null,null,null,null,null,28,"Fv 890 Kongsfjordfjellet"]
[null,null,null,null,null,null,null,null,null,null,null,null,null,null,null,null,null,null,29,{"$f":"VLOOKUP(S33,Hovedtabell,2,FALSE)","v":"Fv 98 Børselvfjellet (Børselv - Kunes)"}]
[null,null,null,null,null,null,null,null,null,null,null,null,null,null,null,null,null,null,30,{"$f":"VLOOKUP(S34,Hovedtabell,2,FALSE)","v":"Fv 813 Beiarfjellet (Misvær - Storjord)"}]

{"sheet":"Søyle MS","index":3,"n_rows":34,"n_cols":20,"rows_kept":34,"cut":false,"hidden":false,"merged":[[3,4,3,12],[5,1,6,1],[3,1,3,3]]}
[null,null,"Søyle MS - Sammenligning"]
[]
[]
[null,"Midlertidig stengt - Sammenligning",null,null,"Finn numrene til strekningene du ønsker i tabellen til høyre og skriv dem i de gule feltene.",null,null,null,null,null,null,null,null,null,null,null,null,null,"Nr","Fjellovergang/strekning"]
[null,null,2,3,5,7,9,11,13,15,17,19,21,23,25,null,null,null,1,{"$f":"VLOOKUP(S5,Hovedtabell,2,FALSE)","v":"E6 Burfjord - Alta"}]
[null,"↓",null,"2009 / 2010","2010 / 2011","2011 / 2012","2012 / 2013","2013 / 2014","2014 / 2015","2015 / 2016","2016 / 2017","2017 / 2018","2018 / 2019","2019 / 2020","2020 / 2021",null,null,null,2,"E6 Hatter"]
[null,null,null,"MS","MS","MS","MS","MS","MS","MS","MS","MS","MS","MS","MS",null,null,null,3,"E6 Kråkmofjellet"]
[null,5,{"$f":"VLOOKUP(B8,Hovedtabell,C5,FALSE)","v":"E6 Saltfjellet"},{"$f":"VLOOKUP($B$8,Hovedtabell,D5,FALSE)","v":9},31,29,10,46,31,19,49,12,{"$f":"VLOOKUP($B$8,Hovedtabell,M5,FALSE)","v":39},{"$f":"VLOOKUP($B$8,Hovedtabell,N5,FALSE)","v":88},31,null,null,null,4,"E6 Kvænangsfjellet"]
[null,8,{"$f":"VLOOKUP(B9,Hovedtabell,C5,FALSE)","v":"E10 Bjørnfjell"},{"$f":"VLOOKUP($B$9,Hovedtabell,D5,FALSE)","v":8},35,13,38,55,40,28,59,22,47,65,{"$f":"VLOOKUP($B$9,Hovedtabell,O5,FALSE)","v":32},null,null,null,5,"E6 Saltfjellet"]
[null,null,null,null,null,null,null,null,null,null,null,null,null,null,null,null,null,null,6,"E6 Sennalandet"]
[null,null,null,null,null,null,null,null,null,null,null,null,null,null,null,null,null,null,7,"E6 Ulvsvågskaret"]
[null,null,null,null,null,null,null,null,null,null,null,null,null,null,null,null,null,null,8,"E10 Bjørnfjell"]
[null,null,null,null,null,null,null,null,null,null,null,null,null,null,null,null,null,null,9,"E12 Umbukta"]
[null,null,null,null,null,null,null,null,null,null,null,null,null,null,null,null,null,null,10,"E69 Hønsa - Repvåg"]
[null,null,null,null,null,null,null,null,null,null,null,null,null,null,null,null,null,null,11,"E69 Nordkapptunnelen - Honningsvåg"]
[null,null,null,null,null,null,null,null,null,null,null,null,null,null,null,null,null,null,12,"E69 Olderfjord - Honningsvåg"]
[null,null,null,null,null,null,null,null,null,null,null,null,null,null,null,null,null,null,13,"E69 Olderfjord - Hønsa"]
[null,null,null,null,null,null,null,null,null,null,null,null,null,null,null,null,null,null,14,"E69 Repvåg - Nordkapptunnelen"]
[null,null,null,null,null,null,null,null,null,null,null,null,null,null,null,null,null,null,15,"E69 Skarsvåg - Nordkapp"]
[null,null,null,null,null,null,null,null,null,null,null,null,null,null,null,null,null,null,16,"E69 Skipsfjordhøgda - Skarsvåg"]
[null,null,null,null,null,null,null,null,null,null,null,null,null,null,null,null,null,null,17,"Rv 73 Krutfjellet"]
[null,null,null,null,null,null,null,null,null,null,null,null,null,null,null,null,null,null,18,"Rv 77 Graddis"]
[null,null,null,null,null,null,null,null,null,null,null,null,null,null,null,null,null,null,19,"Rv 92 Kautokeino - Karasjok"]
[null,null,null,null,null,null,null,null,null,null,null,null,null,null,null,null,null,null,20,"E45 Kautokeino - Alta"]
[null,null,null,null,null,null,null,null,null,null,null,null,null,null,null,null,null,null,21,"Rv 94 Kvalsund - Hammerfest"]
[null,null,null,null,null,null,null,null,null,null,null,null,null,null,null,null,null,null,22,"Fv 8038 Gjesværkrysset - Gjesvær"]
[null,null,null,null,null,null,null,null,null,null,null,null,null,null,null,null,null,null,23,"Fv 889 Smørfjord - Havøysund"]
[null,null,null,null,null,null,null,null,null,null,null,null,null,null,null,null,null,null,24,"Fv 891 Båtsfjordfjellet"]
[null,null,null,null,null,null,null,null,null,null,null,null,null,null,null,null,null,null,25,"E75 Domen (Kiberg-Vardø)"]
[null,null,null,null,null,null,null,null,null,null,null,null,null,null,null,null,null,null,26,"Fv 888 Nordkynvegen (Ifjord - Mehamn)"]
[null,null,null,null,null,null,null,null,null,null,null,null,null,null,null,null,null,null,27,"Fv 98 Ifjordfjellet"]
[null,null,null,null,null,null,null,null,null,null,null,null,null,null,null,null,null,null,28,"Fv 890 Kongsfjordfjellet"]
[null,null,null,null,null,null,null,null,null,null,null,null,null,null,null,null,null,null,29,"Fv 98 Børselvfjellet (Børselv - Kunes)"]
[null,null,null,null,null,null,null,null,null,null,null,null,null,null,null,null,null,null,30,{"$f":"VLOOKUP(S34,Hovedtabell,2,FALSE)","v":"Fv 813 Beiarfjellet (Misvær - Storjord)"}]

{"sheet":"Søyle KK","index":4,"n_rows":34,"n_cols":20,"rows_kept":34,"cut":false,"hidden":false,"merged":[[3,1,3,3],[3,4,3,12],[5,1,6,1]]}
[null,null,"Søyle KK - Sammenligning"]
[]
[]
[null,"Kolonnekjøring - Sammenligning",null,null,"Finn numrene til strekningene du ønsker i tabellen til høyre og skriv dem i de gule feltene.",null,null,null,null,null,null,null,null,null,null,null,null,null,"Nr","Fjellovergang/strekning"]
[null,null,2,4,6,8,10,12,14,16,18,20,22,24,26,null,null,null,1,{"$f":"VLOOKUP(S5,Hovedtabell,2,FALSE)","v":"E6 Burfjord - Alta"}]
[null,"↓",null,"2009 / 2010","2010 / 2011","2011 / 2012","2012 / 2013","2013 / 2014","2014 / 2015","2015 / 2016","2016 / 2017","2017 / 2018","2018 / 2019","2019 / 2020","2020 / 2021",null,null,null,2,"E6 Hatter"]
[null,null,null,"KK","KK","KK","KK","KK","KK","KK","KK","KK","KK","KK","KK",null,null,null,3,"E6 Kråkmofjellet"]
[null,5,{"$f":"VLOOKUP(B8,Hovedtabell,C5,FALSE)","v":"E6 Saltfjellet"},{"$f":"VLOOKUP($B$8,Hovedtabell,D5,FALSE)","v":6},28,30,7,38,31,17,44,11,{"$f":"VLOOKUP($B$8,Hovedtabell,M5,FALSE)","v":17},{"$f":"VLOOKUP($B$8,Hovedtabell,N5,FALSE)","v":78},22,null,null,null,4,"E6 Kvænangsfjellet"]
[null,8,{"$f":"VLOOKUP(B9,Hovedtabell,C5,FALSE)","v":"E10 Bjørnfjell"},{"$f":"VLOOKUP($B$9,Hovedtabell,D5,FALSE)","v":11},30,8,21,43,18,18,28,8,41,63,{"$f":"VLOOKUP($B$9,Hovedtabell,O5,FALSE)","v":19},null,null,null,5,"E6 Saltfjellet"]
[null,null,null,null,null,null,null,null,null,null,null,null,null,null,null,null,null,null,6,"E6 Sennalandet"]
[null,null,null,null,null,null,null,null,null,null,null,null,null,null,null,null,null,null,7,"E6 Ulvsvågskaret"]
[null,null,null,null,null,null,null,null,null,null,null,null,null,null,null,null,null,null,8,"E10 Bjørnfjell"]
[null,null,null,null,null,null,null,null,null,null,null,null,null,null,null,null,null,null,9,"E12 Umbukta"]
[null,null,null,null,null,null,null,null,null,null,null,null,null,null,null,null,null,null,10,"E69 Hønsa - Repvåg"]
[null,null,null,null,null,null,null,null,null,null,null,null,null,null,null,null,null,null,11,"E69 Nordkapptunnelen - Honningsvåg"]
[null,null,null,null,null,null,null,null,null,null,null,null,null,null,null,null,null,null,12,"E69 Olderfjord - Honningsvåg"]
[null,null,null,null,null,null,null,null,null,null,null,null,null,null,null,null,null,null,13,"E69 Olderfjord - Hønsa"]
[null,null,null,null,null,null,null,null,null,null,null,null,null,null,null,null,null,null,14,"E69 Repvåg - Nordkapptunnelen"]
[null,null,null,null,null,null,null,null,null,null,null,null,null,null,null,null,null,null,15,"E69 Skarsvåg - Nordkapp"]
[null,null,null,null,null,null,null,null,null,null,null,null,null,null,null,null,null,null,16,"E69 Skipsfjordhøgda - Skarsvåg"]
[null,null,null,null,null,null,null,null,null,null,null,null,null,null,null,null,null,null,17,"Rv 73 Krutfjellet"]
[null,null,null,null,null,null,null,null,null,null,null,null,null,null,null,null,null,null,18,"Rv 77 Graddis"]
[null,null,null,null,null,null,null,null,null,null,null,null,null,null,null,null,null,null,19,"Rv 92 Kautokeino - Karasjok"]
[null,null,null,null,null,null,null,null,null,null,null,null,null,null,null,null,null,null,20,"E45 Kautokeino - Alta"]
[null,null,null,null,null,null,null,null,null,null,null,null,null,null,null,null,null,null,21,"Rv 94 Kvalsund - Hammerfest"]
[null,null,null,null,null,null,null,null,null,null,null,null,null,null,null,null,null,null,22,"Fv 8038 Gjesværkrysset - Gjesvær"]
[null,null,null,null,null,null,null,null,null,null,null,null,null,null,null,null,null,null,23,"Fv 889 Smørfjord - Havøysund"]
[null,null,null,null,null,null,null,null,null,null,null,null,null,null,null,null,null,null,24,"Fv 891 Båtsfjordfjellet"]
[null,null,null,null,null,null,null,null,null,null,null,null,null,null,null,null,null,null,25,"E75 Domen (Kiberg-Vardø)"]
[null,null,null,null,null,null,null,null,null,null,null,null,null,null,null,null,null,null,26,"Fv 888 Nordkynvegen (Ifjord - Mehamn)"]
[null,null,null,null,null,null,null,null,null,null,null,null,null,null,null,null,null,null,27,"Fv 98 Ifjordfjellet"]
[null,null,null,null,null,null,null,null,null,null,null,null,null,null,null,null,null,null,28,"Fv 890 Kongsfjordfjellet"]
[null,null,null,null,null,null,null,null,null,null,null,null,null,null,null,null,null,null,29,"Fv 98 Børselvfjellet (Børselv - Kunes)"]
[null,null,null,null,null,null,null,null,null,null,null,null,null,null,null,null,null,null,30,{"$f":"VLOOKUP(S34,Hovedtabell,2,FALSE)","v":"Fv 813 Beiarfjellet (Misvær - Storjord)"}]

{"sheet":"Søyle MS alle","index":5,"n_rows":0,"n_cols":0,"rows_kept":0,"cut":false,"hidden":false,"merged":[]}

{"sheet":"Søyle KK alle","index":6,"n_rows":0,"n_cols":0,"rows_kept":0,"cut":false,"hidden":false,"merged":[]}